{"text_format":"1","workbook":"xlsx","n_sheets":10,"sheets":["Front Page","Bulkload Civil","CMSF","Bulkload Crime","Mediation","Help","PrintCivil","PrintCrime","PrintMediation","CrimeOutcome"],"not_rendered":{"charts":0,"images":15,"macros":1,"external_links":0,"defined_names":6,"comments":6,"pivot_tables":0},"unopened":[],"bounds":{"document_bytes":16777216,"sheet_cells":100000,"rows_first":2000,"rows_last":500,"rows_between":2000,"halvings":0,"cell_chars":16384,"cell_head_chars":4096},"cells_cut":0,"cells_raw":0,"read":"whole","date_system":"1900"}

{"sheet":"Front Page","index":0,"n_rows":18,"n_cols":6,"rows_kept":18,"cut":false,"hidden":false,"merged":[[12,3,12,6],[1,1,4,1],[1,2,4,2],[1,3,4,6],[22,1,23,1],[22,2,23,2],[22,3,23,6],[13,3,13,6],[18,1,19,1],[18,2,19,2],[18,3,19,6],[20,1,21,1],[20,2,21,2],[20,3,21,6],[16,5,17,9],[16,1,17,2],[1,8,3,10],[11,3,11,6],[6,3,6,6],[8,3,8,6],[9,3,9,6],[7,3,7,6],[4,8,6,10],[10,3,10,6]]}
[]
[]
[]
[]
[]
[]
[null,"Field Title","Enter Information","Description of field"]
[null,"Providers LAA Office Number",null,"Providers Office Account Number \n(e.g. 1A123B)"]
[null,"Submission Month",null,"In the format MMM \n(e.g. DEC)"]
[null,"Submission Year",null,"In the format YYYY \n(e.g. 2013)"]
[null,"Crime Schedule Number",null,"Providers Crime Schedule Number\n(e.g. CRM/1A123B/13)"]
[null,"Civil Submission Reference",null,"Providers Civil Submission Reference\n(e.g. 1A123B/CIVIL)"]
[null,"Mediation Submission Reference",null,"Providers Mediation Submission Reference\n(e.g. 1A123B/MEDI2010/14)"]
[]
[]
[]
[null,{"$f":"(\"© Crown Copyright \" &'Front Page'!$E$18 & \" - \" &'Front Page'!$D$18)","v":"© Crown Copyright OCTOBER 2025 - v1.37"},null,null,null,{"$f":"(D18 & \" - Created & Maintained by the LAA Digital Get Access service area\")","v":"v1.37 - Created & Maintained by the LAA Digital Get Access service area"}]
[null,null,null,"v1.37","OCTOBER 2025"]

{"sheet":"Bulkload Civil","index":1,"n_rows":502,"n_cols":71,"rows_kept":502,"cut":false,"hidden":false,"merged":[[1,9,3,22],[3,1,3,2],[3,53,3,60],[1,31,1,33],[3,31,3,33],[3,3,3,7],[1,8,3,8]]}
[]
[null,null,null,null,null,null,null,"Save Progress","Key Instructions:","> Complete ALL white fields - Failure to do this WILL result in your submission being rejected and your payment will be at risk!\n> Enter fee scheme in first column BEFORE entering specific claim line details\n> Do NOT complete grey fields. Yellow fields are OPTIONAL - please complete only if applicable\n> For more detailed help and support please see Help Page (Or contact Online Support - Details on help page)\n> Run Data Check prior to submitting your claim! If errors are found (highlighted orange) please correct and re-run check",null,null,null,null,null,null,null,null,null,null,null,null,null,null,null,null,null,null,null,null,null,null,null,null,null,null,null,null,null,null,null,null,null,null,null,null,null,null,null,null,null,null,null,null,null,null,null,null,"Save Progress"]
[]
[null,{"$f":"TRIM(UPPER('Front Page'!$C$8)&\" - \"&UPPER('Front Page'!$C$9)&\" - \"&UPPER('Front Page'!$C$10))","v":"- -"},null,{"$f":"(\"© Crown Copyright \" &'Front Page'!$E$18 & \" - \" &'Front Page'!$D$18)","v":"© Crown Copyright OCTOBER 2025 - v1.37"}]
[null,null,null,{"$f":"TRIM(UPPER('Front Page'!$C$8))","v":""},null,{"$f":"TRIM(UPPER('Front Page'!$C$9))","v":""},{"$f":"TRIM(UPPER('Front Page'!$C$10))","v":""},{"$f":"TRIM(UPPER('Front Page'!$C$12))","v":""}]
[null,"Line Number","Fee Scheme","Fee Code","Schedule Reference","Case Reference Number","Case Start Date","Case ID","UFN","Procurement Area","Access Point","Delivery Location","Client Forename","Client Surname","Client Date of Birth","UCN","HO UCN","CLA Reference Number","CLA Exemption Code","Gender","Ethnicity","Disability","Client Postcode","Case Concluded Date/Case Claimed Date","Matter Type 1","Matter Type 2","Case Stage/Level","Advice Time","Travel Time","Waiting Time","Net Profit Costs (Including Travel & Waiting / Excluding VAT)","Net Disbursement Amount (Excluding VAT)","Net Cost of Counsel (Excluding VAT)","Disbursements VAT amount","Travel & Waiting Costs","VAT Indicator","Tolerance indicator","Legacy Case","NIAT Disbursement Prior Authority Number","London / Non London rate","Adjourned Hearing Fee","Additional Travel Payment","Value of Costs/Damages recovered","Meetings Attended?","Detention Travel & Waiting Costs (Excluding VAT)","JR / Form Filling (Excluding VAT)","Eligible Client","Court Location (HPCDS)","CMRH Oral","CMRH Telephone","AIT Hearing Centre","Substantive hearing?","HO Interview","Local Authority number","Client Type","Stage Reached","Outcome for client","Type of Advice","Transfer Date","Medical Reports Claimed","Exemption Criteria Satisfied","IRC Surgery","Surgery date","No of clients seen at surgery","No of clients resulting in a Legal Help matter opened","Designated Accredited Representative","Postal Application Accepted","Mental Health Tribunal reference","Exceptional Case Funding Reference","NRM Advice","Follow on work"]
["submissionPeriod=",null,"account=","FEE_CODE=","SCHEDULE_REFERENCE=","CASE_REF_NUMBER=","CASE_START_DATE=","CASE_ID=","UFN=","PROCUREMENT_AREA=","ACCESS_POINT=","DELIVERY_LOCATION=","CLIENT_FORENAME=","CLIENT_SURNAME=","CLIENT_DATE_OF_BIRTH=","UCN=","HO_UCN=","CLA_REF_NUMBER=","CLA_EXEMPTION=","GENDER=","ETHNICITY=","DISABILITY=","CLIENT_POST_CODE=","WORK_CONCLUDED_DATE=","matterType=",":","CASE_STAGE_LEVEL=","ADVICE_TIME=","TRAVEL_TIME=","WAITING_TIME=","PROFIT_COST=","DISBURSEMENTS_AMOUNT=","COUNSEL_COST=","DISBURSEMENTS_VAT=","TRAVEL_WAITING_COSTS=","VAT_INDICATOR=","TOLERANCE_INDICATOR=","LEGACY_CASE=","PRIOR_AUTHORITY_REF=","LONDON_NONLONDON_RATE=","ADJOURNED_HEARING_FEE=","ADDITIONAL_TRAVEL_PAYMENT=","VALUE_OF_COSTS=","MEETINGS_ATTENDED=","TRAVEL_COSTS=","JR_FORM_FILLING=","ELIGIBLE_CLIENT_INDICATOR=","COURT_LOCATION_HPCDS=","CMRH_ORAL=","CMRH_TELEPHONE=","AIT_HEARING_CENTRE=","SUBSTANTIVE_HEARING=","HO_INTERVIEW=","LOCAL_AUTHORITY_NUMBER=","CLIENT_TYPE=","STAGE_REACHED=","OUTCOME_CODE=","TYPE_OF_ADVICE=","TRANSFER_DATE=","MEDICAL_REPORTS_CLAIMED=","EXEMPTION_CRITERIA_SATISFIED=","IRC_SURGERY=","SURGERY_DATE=","NO_OF_CLIENTS=","NO_OF_SURGERY_CLIENTS=","DESI_ACC_REP=","POSTAL_APPL_ACCP=","MHT_REF_NUMBER=","EXCL_CASE_FUNDING_REF=","NATIONAL_REF_MECHANISM_ADVICE=","FOLLOW_ON_WORK="]
[{"$f":"ROW()","v":8},1,null,null,null,null,null,null,{"$f":"IF(C8=\"VOID\",\"\",(TEXT(G8,\"DD\")&TEXT(G8,\"MM\")&TEXT(G8,\"yy\")&\"/\"&H8))","v":"000100/"},null,null,null,null,null,null,{"$f":"IF(C8=\"VOID\",\"\",(TEXT(O8,\"DD\")&TEXT(O8,\"MM\")&TEXT(O8,\"YYYY\")&\"/\"&UPPER(LEFT(M8,1))&\"/\"&UPPER(LEFT(N8,4))))","v":"00011900//"}]
[{"$f":"ROW()","v":9},2,null,null,null,null,null,null,"000100/",null,null,null,null,null,null,"00011900//"]
[{"$f":"ROW()","v":10},3,null,null,null,null,null,null,"000100/",null,null,null,null,null,null,"00011900//"]
[{"$f":"ROW()","v":11},4,null,null,null,null,null,null,"000100/",null,null,null,null,null,null,"00011900//"]
[{"$f":"ROW()","v":12},5,null,null,null,null,null,null,"000100/",null,null,null,null,null,null,"00011900//"]
[{"$f":"ROW()","v":13},6,null,null,null,null,null,null,"000100/",null,null,null,null,null,null,"00011900//"]
[{"$f":"ROW()","v":14},7,null,null,null,null,null,null,"000100/",null,null,null,null,null,null,"00011900//"]
[{"$f":"ROW()","v":15},8,null,null,null,null,null,null,"000100/",null,null,null,null,null,null,"00011900//"]
[{"$f":"ROW()","v":16},9,null,null,null,null,null,null,"000100/",null,null,null,null,null,null,"00011900//"]
[{"$f":"ROW()","v":17},10,null,null,null,null,null,null,"000100/",null,null,null,null,null,null,"00011900//"]
[{"$f":"ROW()","v":18},11,null,null,null,null,null,null,"000100/",null,null,null,null,null,null,"00011900//"]
[{"$f":"ROW()","v":19},12,null,null,null,null,null,null,"000100/",null,null,null,null,null,null,"00011900//"]
[{"$f":"ROW()","v":20},13,null,null,null,null,null,null,{"$f":"IF(C20=\"VOID\",\"\",(TEXT(G20,\"DD\")&TEXT(G20,\"MM\")&TEXT(G20,\"yy\")&\"/\"&H20))","v":"000100/"},null,null,null,null,null,null,"00011900//"]
[{"$f":"ROW()","v":21},14,null,null,null,null,null,null,"000100/",null,null,null,null,null,null,"00011900//"]
[{"$f":"ROW()","v":22},15,null,null,null,null,null,null,"000100/",null,null,null,null,null,null,"00011900//"]
[{"$f":"ROW()","v":23},16,null,null,null,null,null,null,"000100/",null,null,null,null,null,null,"00011900//"]
[{"$f":"ROW()","v":24},17,null,null,null,null,null,null,"000100/",null,null,null,null,null,null,"00011900//"]
[{"$f":"ROW()","v":25},18,null,null,null,null,null,null,"000100/",null,null,null,null,null,null,"00011900//"]
[{"$f":"ROW()","v":26},19,null,null,null,null,null,null,"000100/",null,null,null,null,null,null,"00011900//"]
[{"$f":"ROW()","v":27},20,null,null,null,null,null,null,"000100/",null,null,null,null,null,null,"00011900//"]
[{"$f":"ROW()","v":28},21,null,null,null,null,null,null,"000100/",null,null,null,null,null,null,"00011900//"]
[{"$f":"ROW()","v":29},22,null,null,null,null,null,null,"000100/",null,null,null,null,null,null,"00011900//"]
[{"$f":"ROW()","v":30},23,null,null,null,null,null,null,"000100/",null,null,null,null,null,null,"00011900//"]
[{"$f":"ROW()","v":31},24,null,null,null,null,null,null,"000100/",null,null,null,null,null,null,"00011900//"]
[{"$f":"ROW()","v":32},25,null,null,null,null,null,null,"000100/",null,null,null,null,null,null,"00011900//"]
[{"$f":"ROW()","v":33},26,null,null,null,null,null,null,"000100/",null,null,null,null,null,null,{"$f":"IF(C33=\"VOID\",\"\",(TEXT(O33,\"DD\")&TEXT(O33,\"MM\")&TEXT(O33,\"YYYY\")&\"/\"&UPPER(LEFT(M33,1))&\"/\"&UPPER(LEFT(N33,4))))","v":"00011900//"}]
[{"$f":"ROW()","v":34},27,null,null,null,null,null,null,{"$f":"IF(C34=\"VOID\",\"\",(TEXT(G34,\"DD\")&TEXT(G34,\"MM\")&TEXT(G34,\"yy\")&\"/\"&H34))","v":"000100/"},null,null,null,null,null,null,"00011900//"]
[{"$f":"ROW()","v":35},28,null,null,null,null,null,null,"000100/",null,null,null,null,null,null,"00011900//"]
[{"$f":"ROW()","v":36},29,null,null,null,null,null,null,"000100/",null,null,null,null,null,null,"00011900//"]
[{"$f":"ROW()","v":37},30,null,null,null,null,null,null,"000100/",null,null,null,null,null,null,"00011900//"]
[{"$f":"ROW()","v":38},31,null,null,null,null,null,null,"000100/",null,null,null,null,null,null,"00011900//"]
[{"$f":"ROW()","v":39},32,null,null,null,null,null,null,"000100/",null,null,null,null,null,null,"00011900//"]
[{"$f":"ROW()","v":40},33,null,null,null,null,null,null,"000100/",null,null,null,null,null,null,"00011900//"]
[{"$f":"ROW()","v":41},34,null,null,null,null,null,null,"000100/",null,null,null,null,null,null,"00011900//"]
[{"$f":"ROW()","v":42},35,null,null,null,null,null,null,"000100/",null,null,null,null,null,null,"00011900//"]
[{"$f":"ROW()","v":43},36,null,null,null,null,null,null,"000100/",null,null,null,null,null,null,"00011900//"]
[{"$f":"ROW()","v":44},37,null,null,null,null,null,null,"000100/",null,null,null,null,null,null,"00011900//"]
[{"$f":"ROW()","v":45},38,null,null,null,null,null,null,"000100/",null,null,null,null,null,null,"00011900//"]
[{"$f":"ROW()","v":46},39,null,null,null,null,null,null,"000100/",null,null,null,null,null,null,"00011900//"]
[{"$f":"ROW()","v":47},40,null,null,null,null,null,null,"000100/",null,null,null,null,null,null,"00011900//"]
[{"$f":"ROW()","v":48},41,null,null,null,null,null,null,"000100/",null,null,null,null,null,null,"00011900//"]
[{"$f":"ROW()","v":49},42,null,null,null,null,null,null,"000100/",null,null,null,null,null,null,"00011900//"]
[{"$f":"ROW()","v":50},43,null,null,null,null,null,null,"000100/",null,null,null,null,null,null,"00011900//"]
[{"$f":"ROW()","v":51},44,null,null,null,null,null,null,"000100/",null,null,null,null,null,null,"00011900//"]
[{"$f":"ROW()","v":52},45,null,null,null,null,null,null,"000100/",null,null,null,null,null,null,"00011900//"]
[{"$f":"ROW()","v":53},46,null,null,null,null,null,null,"000100/",null,null,null,null,null,null,"00011900//"]
[{"$f":"ROW()","v":54},47,null,null,null,null,null,null,"000100/",null,null,null,null,null,null,"00011900//"]
[{"$f":"ROW()","v":55},48,null,null,null,null,null,null,"000100/",null,null,null,null,null,null,"00011900//"]
[{"$f":"ROW()","v":56},49,null,null,null,null,null,null,"000100/",null,null,null,null,null,null,"00011900//"]
[{"$f":"ROW()","v":57},50,null,null,null,null,null,null,"000100/",null,null,null,null,null,null,"00011900//"]
[{"$f":"ROW()","v":58},51,null,null,null,null,null,null,"000100/",null,null,null,null,null,null,"00011900//"]
[{"$f":"ROW()","v":59},52,null,null,null,null,null,null,"000100/",null,null,null,null,null,null,"00011900//"]
[{"$f":"ROW()","v":60},53,null,null,null,null,null,null,"000100/",null,null,null,null,null,null,"00011900//"]
[{"$f":"ROW()","v":61},54,null,null,null,null,null,null,"000100/",null,null,null,null,null,null,"00011900//"]
[{"$f":"ROW()","v":62},55,null,null,null,null,null,null,"000100/",null,null,null,null,null,null,"00011900//"]
[{"$f":"ROW()","v":63},56,null,null,null,null,null,null,"000100/",null,null,null,null,null,null,"00011900//"]
[{"$f":"ROW()","v":64},57,null,null,null,null,null,null,"000100/",null,null,null,null,null,null,"00011900//"]
[{"$f":"ROW()","v":65},58,null,null,null,null,null,null,"000100/",null,null,null,null,null,null,"00011900//"]
[{"$f":"ROW()","v":66},59,null,null,null,null,null,null,"000100/",null,null,null,null,null,null,"00011900//"]
[{"$f":"ROW()","v":67},60,null,null,null,null,null,null,"000100/",null,null,null,null,null,null,"00011900//"]
[{"$f":"ROW()","v":68},61,null,null,null,null,null,null,"000100/",null,null,null,null,null,null,"00011900//"]
[{"$f":"ROW()","v":69},62,null,null,null,null,null,null,"000100/",null,null,null,null,null,null,"00011900//"]
[{"$f":"ROW()","v":70},63,null,null,null,null,null,null,"000100/",null,null,null,null,null,null,"00011900//"]
[{"$f":"ROW()","v":71},64,null,null,null,null,null,null,"000100/",null,null,null,null,null,null,"00011900//"]
[{"$f":"ROW()","v":72},65,null,null,null,null,null,null,"000100/",null,null,null,null,null,null,"00011900//"]
[{"$f":"ROW()","v":73},66,null,null,null,null,null,null,{"$f":"IF(C73=\"VOID\",\"\",(TEXT(G73,\"DD\")&TEXT(G73,\"MM\")&TEXT(G73,\"yy\")&\"/\"&H73))","v":"000100/"},null,null,null,null,null,null,{"$f":"IF(C73=\"VOID\",\"\",(TEXT(O73,\"DD\")&TEXT(O73,\"MM\")&TEXT(O73,\"YYYY\")&\"/\"&UPPER(LEFT(M73,1))&\"/\"&UPPER(LEFT(N73,4))))","v":"00011900//"}]
[{"$f":"ROW()","v":74},67,null,null,null,null,null,null,"000100/",null,null,null,null,null,null,"00011900//"]
[{"$f":"ROW()","v":75},68,null,null,null,null,null,null,"000100/",null,null,null,null,null,null,"00011900//"]
[{"$f":"ROW()","v":76},69,null,null,null,null,null,null,"000100/",null,null,null,null,null,null,"00011900//"]
[{"$f":"ROW()","v":77},70,null,null,null,null,null,null,"000100/",null,null,null,null,null,null,"00011900//"]
[{"$f":"ROW()","v":78},71,null,null,null,null,null,null,"000100/",null,null,null,null,null,null,"00011900//"]
[{"$f":"ROW()","v":79},72,null,null,null,null,null,null,"000100/",null,null,null,null,null,null,"00011900//"]
[{"$f":"ROW()","v":80},73,null,null,null,null,null,null,"000100/",null,null,null,null,null,null,"00011900//"]
[{"$f":"ROW()","v":81},74,null,null,null,null,null,null,"000100/",null,null,null,null,null,null,"00011900//"]
[{"$f":"ROW()","v":82},75,null,null,null,null,null,null,"000100/",null,null,null,null,null,null,"00011900//"]
[{"$f":"ROW()","v":83},76,null,null,null,null,null,null,"000100/",null,null,null,null,null,null,"00011900//"]
[{"$f":"ROW()","v":84},77,null,null,null,null,null,null,"000100/",null,null,null,null,null,null,"00011900//"]
[{"$f":"ROW()","v":85},78,null,null,null,null,null,null,"000100/",null,null,null,null,null,null,"00011900//"]
[{"$f":"ROW()","v":86},79,null,null,null,null,null,null,"000100/",null,null,null,null,null,null,"00011900//"]
[{"$f":"ROW()","v":87},80,null,null,null,null,null,null,"000100/",null,null,null,null,null,null,"00011900//"]
[{"$f":"ROW()","v":88},81,null,null,null,null,null,null,"000100/",null,null,null,null,null,null,"00011900//"]
[{"$f":"ROW()","v":89},82,null,null,null,null,null,null,"000100/",null,null,null,null,null,null,"00011900//"]
[{"$f":"ROW()","v":90},83,null,null,null,null,null,null,"000100/",null,null,null,null,null,null,"00011900//"]
[{"$f":"ROW()","v":91},84,null,null,null,null,null,null,"000100/",null,null,null,null,null,null,"00011900//"]
[{"$f":"ROW()","v":92},85,null,null,null,null,null,null,"000100/",null,null,null,null,null,null,"00011900//"]
[{"$f":"ROW()","v":93},86,null,null,null,null,null,null,"000100/",null,null,null,null,null,null,"00011900//"]
[{"$f":"ROW()","v":94},87,null,null,null,null,null,null,"000100/",null,null,null,null,null,null,"00011900//"]
[{"$f":"ROW()","v":95},88,null,null,null,null,null,null,"000100/",null,null,null,null,null,null,"00011900//"]
[{"$f":"ROW()","v":96},89,null,null,null,null,null,null,"000100/",null,null,null,null,null,null,"00011900//"]
[{"$f":"ROW()","v":97},90,null,null,null,null,null,null,"000100/",null,null,null,null,null,null,"00011900//"]
[{"$f":"ROW()","v":98},91,null,null,null,null,null,null,"000100/",null,null,null,null,null,null,"00011900//"]
[{"$f":"ROW()","v":99},92,null,null,null,null,null,null,"000100/",null,null,null,null,null,null,"00011900//"]
[{"$f":"ROW()","v":100},93,null,null,null,null,null,null,"000100/",null,null,null,null,null,null,"00011900//"]
[{"$f":"ROW()","v":101},94,null,null,null,null,null,null,"000100/",null,null,null,null,null,null,"00011900//"]
[{"$f":"ROW()","v":102},95,null,null,null,null,null,null,"000100/",null,null,null,null,null,null,"00011900//"]
[{"$f":"ROW()","v":103},96,null,null,null,null,null,null,"000100/",null,null,null,null,null,null,"00011900//"]
[{"$f":"ROW()","v":104},97,null,null,null,null,null,null,"000100/",null,null,null,null,null,null,"00011900//"]
[{"$f":"ROW()","v":105},98,null,null,null,null,null,null,"000100/",null,null,null,null,null,null,"00011900//"]
[{"$f":"ROW()","v":106},99,null,null,null,null,null,null,"000100/",null,null,null,null,null,null,"00011900//"]
[{"$f":"ROW()","v":107},100,null,null,null,null,null,null,"000100/",null,null,null,null,null,null,"00011900//"]
[{"$f":"ROW()","v":108},101,null,null,null,null,null,null,"000100/",null,null,null,null,null,null,"00011900//"]
[{"$f":"ROW()","v":109},102,null,null,null,null,null,null,"000100/",null,null,null,null,null,null,"00011900//"]
[{"$f":"ROW()","v":110},103,null,null,null,null,null,null,"000100/",null,null,null,null,null,null,"00011900//"]
[{"$f":"ROW()","v":111},104,null,null,null,null,null,null,"000100/",null,null,null,null,null,null,"00011900//"]
[{"$f":"ROW()","v":112},105,null,null,null,null,null,null,"000100/",null,null,null,null,null,null,"00011900//"]
[{"$f":"ROW()","v":113},106,null,null,null,null,null,null,"000100/",null,null,null,null,null,null,"00011900//"]
[{"$f":"ROW()","v":114},107,null,null,null,null,null,null,"000100/",null,null,null,null,null,null,"00011900//"]
[{"$f":"ROW()","v":115},108,null,null,null,null,null,null,"000100/",null,null,null,null,null,null,"00011900//"]
[{"$f":"ROW()","v":116},109,null,null,null,null,null,null,"000100/",null,null,null,null,null,null,"00011900//"]
[{"$f":"ROW()","v":117},110,null,null,null,null,null,null,"000100/",null,null,null,null,null,null,"00011900//"]
[{"$f":"ROW()","v":118},111,null,null,null,null,null,null,"000100/",null,null,null,null,null,null,"00011900//"]
[{"$f":"ROW()","v":119},112,null,null,null,null,null,null,"000100/",null,null,null,null,null,null,"00011900//"]
[{"$f":"ROW()","v":120},113,null,null,null,null,null,null,"000100/",null,null,null,null,null,null,"00011900//"]
[{"$f":"ROW()","v":121},114,null,null,null,null,null,null,"000100/",null,null,null,null,null,null,"00011900//"]
[{"$f":"ROW()","v":122},115,null,null,null,null,null,null,"000100/",null,null,null,null,null,null,"00011900//"]
[{"$f":"ROW()","v":123},116,null,null,null,null,null,null,"000100/",null,null,null,null,null,null,"00011900//"]
[{"$f":"ROW()","v":124},117,null,null,null,null,null,null,"000100/",null,null,null,null,null,null,"00011900//"]
[{"$f":"ROW()","v":125},118,null,null,null,null,null,null,"000100/",null,null,null,null,null,null,"00011900//"]
[{"$f":"ROW()","v":126},119,null,null,null,null,null,null,"000100/",null,null,null,null,null,null,"00011900//"]
[{"$f":"ROW()","v":127},120,null,null,null,null,null,null,"000100/",null,null,null,null,null,null,"00011900//"]
[{"$f":"ROW()","v":128},121,null,null,null,null,null,null,"000100/",null,null,null,null,null,null,"00011900//"]
[{"$f":"ROW()","v":129},122,null,null,null,null,null,null,"000100/",null,null,null,null,null,null,"00011900//"]
[{"$f":"ROW()","v":130},123,null,null,null,null,null,null,"000100/",null,null,null,null,null,null,"00011900//"]
[{"$f":"ROW()","v":131},124,null,null,null,null,null,null,"000100/",null,null,null,null,null,null,"00011900//"]
[{"$f":"ROW()","v":132},125,null,null,null,null,null,null,"000100/",null,null,null,null,null,null,"00011900//"]
[{"$f":"ROW()","v":133},126,null,null,null,null,null,null,"000100/",null,null,null,null,null,null,"00011900//"]
[{"$f":"ROW()","v":134},127,null,null,null,null,null,null,"000100/",null,null,null,null,null,null,"00011900//"]
[{"$f":"ROW()","v":135},128,null,null,null,null,null,null,"000100/",null,null,null,null,null,null,"00011900//"]
[{"$f":"ROW()","v":136},129,null,null,null,null,null,null,"000100/",null,null,null,null,null,null,"00011900//"]
[{"$f":"ROW()","v":137},130,null,null,null,null,null,null,{"$f":"IF(C137=\"VOID\",\"\",(TEXT(G137,\"DD\")&TEXT(G137,\"MM\")&TEXT(G137,\"yy\")&\"/\"&H137))","v":"000100/"},null,null,null,null,null,null,{"$f":"IF(C137=\"VOID\",\"\",(TEXT(O137,\"DD\")&TEXT(O137,\"MM\")&TEXT(O137,\"YYYY\")&\"/\"&UPPER(LEFT(M137,1))&\"/\"&UPPER(LEFT(N137,4))))","v":"00011900//"}]
[{"$f":"ROW()","v":138},131,null,null,null,null,null,null,"000100/",null,null,null,null,null,null,"00011900//"]
[{"$f":"ROW()","v":139},132,null,null,null,null,null,null,"000100/",null,null,null,null,null,null,"00011900//"]
[{"$f":"ROW()","v":140},133,null,null,null,null,null,null,"000100/",null,null,null,null,null,null,"00011900//"]
[{"$f":"ROW()","v":141},134,null,null,null,null,null,null,"000100/",null,null,null,null,null,null,"00011900//"]
[{"$f":"ROW()","v":142},135,null,null,null,null,null,null,"000100/",null,null,null,null,null,null,"00011900//"]
[{"$f":"ROW()","v":143},136,null,null,null,null,null,null,"000100/",null,null,null,null,null,null,"00011900//"]
[{"$f":"ROW()","v":144},137,null,null,null,null,null,null,"000100/",null,null,null,null,null,null,"00011900//"]
[{"$f":"ROW()","v":145},138,null,null,null,null,null,null,"000100/",null,null,null,null,null,null,"00011900//"]
[{"$f":"ROW()","v":146},139,null,null,null,null,null,null,"000100/",null,null,null,null,null,null,"00011900//"]
[{"$f":"ROW()","v":147},140,null,null,null,null,null,null,"000100/",null,null,null,null,null,null,"00011900//"]
[{"$f":"ROW()","v":148},141,null,null,null,null,null,null,"000100/",null,null,null,null,null,null,"00011900//"]
[{"$f":"ROW()","v":149},142,null,null,null,null,null,null,"000100/",null,null,null,null,null,null,"00011900//"]
[{"$f":"ROW()","v":150},143,null,null,null,null,null,null,"000100/",null,null,null,null,null,null,"00011900//"]
[{"$f":"ROW()","v":151},144,null,null,null,null,null,null,"000100/",null,null,null,null,null,null,"00011900//"]
[{"$f":"ROW()","v":152},145,null,null,null,null,null,null,"000100/",null,null,null,null,null,null,"00011900//"]
[{"$f":"ROW()","v":153},146,null,null,null,null,null,null,"000100/",null,null,null,null,null,null,"00011900//"]
[{"$f":"ROW()","v":154},147,null,null,null,null,null,null,"000100/",null,null,null,null,null,null,"00011900//"]
[{"$f":"ROW()","v":155},148,null,null,null,null,null,null,"000100/",null,null,null,null,null,null,"00011900//"]
[{"$f":"ROW()","v":156},149,null,null,null,null,null,null,"000100/",null,null,null,null,null,null,"00011900//"]
[{"$f":"ROW()","v":157},150,null,null,null,null,null,null,"000100/",null,null,null,null,null,null,"00011900//"]
[{"$f":"ROW()","v":158},151,null,null,null,null,null,null,"000100/",null,null,null,null,null,null,"00011900//"]
[{"$f":"ROW()","v":159},152,null,null,null,null,null,null,"000100/",null,null,null,null,null,null,"00011900//"]
[{"$f":"ROW()","v":160},153,null,null,null,null,null,null,"000100/",null,null,null,null,null,null,"00011900//"]
[{"$f":"ROW()","v":161},154,null,null,null,null,null,null,"000100/",null,null,null,null,null,null,"00011900//"]
[{"$f":"ROW()","v":162},155,null,null,null,null,null,null,"000100/",null,null,null,null,null,null,"00011900//"]
[{"$f":"ROW()","v":163},156,null,null,null,null,null,null,"000100/",null,null,null,null,null,null,"00011900//"]
[{"$f":"ROW()","v":164},157,null,null,null,null,null,null,"000100/",null,null,null,null,null,null,"00011900//"]
[{"$f":"ROW()","v":165},158,null,null,null,null,null,null,"000100/",null,null,null,null,null,null,"00011900//"]
[{"$f":"ROW()","v":166},159,null,null,null,null,null,null,"000100/",null,null,null,null,null,null,"00011900//"]
[{"$f":"ROW()","v":167},160,null,null,null,null,null,null,"000100/",null,null,null,null,null,null,"00011900//"]
[{"$f":"ROW()","v":168},161,null,null,null,null,null,null,"000100/",null,null,null,null,null,null,"00011900//"]
[{"$f":"ROW()","v":169},162,null,null,null,null,null,null,"000100/",null,null,null,null,null,null,"00011900//"]
[{"$f":"ROW()","v":170},163,null,null,null,null,null,null,"000100/",null,null,null,null,null,null,"00011900//"]
[{"$f":"ROW()","v":171},164,null,null,null,null,null,null,"000100/",null,null,null,null,null,null,"00011900//"]
[{"$f":"ROW()","v":172},165,null,null,null,null,null,null,"000100/",null,null,null,null,null,null,"00011900//"]
[{"$f":"ROW()","v":173},166,null,null,null,null,null,null,"000100/",null,null,null,null,null,null,"00011900//"]
[{"$f":"ROW()","v":174},167,null,null,null,null,null,null,"000100/",null,null,null,null,null,null,"00011900//"]
[{"$f":"ROW()","v":175},168,null,null,null,null,null,null,"000100/",null,null,null,null,null,null,"00011900//"]
[{"$f":"ROW()","v":176},169,null,null,null,null,null,null,"000100/",null,null,null,null,null,null,"00011900//"]
[{"$f":"ROW()","v":177},170,null,null,null,null,null,null,"000100/",null,null,null,null,null,null,"00011900//"]
[{"$f":"ROW()","v":178},171,null,null,null,null,null,null,"000100/",null,null,null,null,null,null,"00011900//"]
[{"$f":"ROW()","v":179},172,null,null,null,null,null,null,"000100/",null,null,null,null,null,null,"00011900//"]
[{"$f":"ROW()","v":180},173,null,null,null,null,null,null,"000100/",null,null,null,null,null,null,"00011900//"]
[{"$f":"ROW()","v":181},174,null,null,null,null,null,null,"000100/",null,null,null,null,null,null,"00011900//"]
[{"$f":"ROW()","v":182},175,null,null,null,null,null,null,"000100/",null,null,null,null,null,null,"00011900//"]
[{"$f":"ROW()","v":183},176,null,null,null,null,null,null,"000100/",null,null,null,null,null,null,"00011900//"]
[{"$f":"ROW()","v":184},177,null,null,null,null,null,null,"000100/",null,null,null,null,null,null,"00011900//"]
[{"$f":"ROW()","v":185},178,null,null,null,null,null,null,"000100/",null,null,null,null,null,null,"00011900//"]
[{"$f":"ROW()","v":186},179,null,null,null,null,null,null,"000100/",null,null,null,null,null,null,"00011900//"]
[{"$f":"ROW()","v":187},180,null,null,null,null,null,null,"000100/",null,null,null,null,null,null,"00011900//"]
[{"$f":"ROW()","v":188},181,null,null,null,null,null,null,"000100/",null,null,null,null,null,null,"00011900//"]
[{"$f":"ROW()","v":189},182,null,null,null,null,null,null,"000100/",null,null,null,null,null,null,"00011900//"]
[{"$f":"ROW()","v":190},183,null,null,null,null,null,null,"000100/",null,null,null,null,null,null,"00011900//"]
[{"$f":"ROW()","v":191},184,null,null,null,null,null,null,"000100/",null,null,null,null,null,null,"00011900//"]
[{"$f":"ROW()","v":192},185,null,null,null,null,null,null,"000100/",null,null,null,null,null,null,"00011900//"]
[{"$f":"ROW()","v":193},186,null,null,null,null,null,null,"000100/",null,null,null,null,null,null,"00011900//"]
[{"$f":"ROW()","v":194},187,null,null,null,null,null,null,"000100/",null,null,null,null,null,null,"00011900//"]
[{"$f":"ROW()","v":195},188,null,null,null,null,null,null,"000100/",null,null,null,null,null,null,"00011900//"]
[{"$f":"ROW()","v":196},189,null,null,null,null,null,null,"000100/",null,null,null,null,null,null,"00011900//"]
[{"$f":"ROW()","v":197},190,null,null,null,null,null,null,"000100/",null,null,null,null,null,null,"00011900//"]
[{"$f":"ROW()","v":198},191,null,null,null,null,null,null,"000100/",null,null,null,null,null,null,"00011900//"]
[{"$f":"ROW()","v":199},192,null,null,null,null,null,null,"000100/",null,null,null,null,null,null,"00011900//"]
[{"$f":"ROW()","v":200},193,null,null,null,null,null,null,"000100/",null,null,null,null,null,null,"00011900//"]
[{"$f":"ROW()","v":201},194,null,null,null,null,null,null,{"$f":"IF(C201=\"VOID\",\"\",(TEXT(G201,\"DD\")&TEXT(G201,\"MM\")&TEXT(G201,\"yy\")&\"/\"&H201))","v":"000100/"},null,null,null,null,null,null,{"$f":"IF(C201=\"VOID\",\"\",(TEXT(O201,\"DD\")&TEXT(O201,\"MM\")&TEXT(O201,\"YYYY\")&\"/\"&UPPER(LEFT(M201,1))&\"/\"&UPPER(LEFT(N201,4))))","v":"00011900//"}]
[{"$f":"ROW()","v":202},195,null,null,null,null,null,null,"000100/",null,null,null,null,null,null,"00011900//"]
[{"$f":"ROW()","v":203},196,null,null,null,null,null,null,"000100/",null,null,null,null,null,null,"00011900//"]
[{"$f":"ROW()","v":204},197,null,null,null,null,null,null,"000100/",null,null,null,null,null,null,"00011900//"]
[{"$f":"ROW()","v":205},198,null,null,null,null,null,null,"000100/",null,null,null,null,null,null,"00011900//"]
[{"$f":"ROW()","v":206},199,null,null,null,null,null,null,"000100/",null,null,null,null,null,null,"00011900//"]
[{"$f":"ROW()","v":207},200,null,null,null,null,null,null,"000100/",null,null,null,null,null,null,"00011900//"]
[{"$f":"ROW()","v":208},201,null,null,null,null,null,null,"000100/",null,null,null,null,null,null,"00011900//"]
[{"$f":"ROW()","v":209},202,null,null,null,null,null,null,"000100/",null,null,null,null,null,null,"00011900//"]
[{"$f":"ROW()","v":210},203,null,null,null,null,null,null,"000100/",null,null,null,null,null,null,"00011900//"]
[{"$f":"ROW()","v":211},204,null,null,null,null,null,null,"000100/",null,null,null,null,null,null,"00011900//"]
[{"$f":"ROW()","v":212},205,null,null,null,null,null,null,"000100/",null,null,null,null,null,null,"00011900//"]
[{"$f":"ROW()","v":213},206,null,null,null,null,null,null,"000100/",null,null,null,null,null,null,"00011900//"]
[{"$f":"ROW()","v":214},207,null,null,null,null,null,null,"000100/",null,null,null,null,null,null,"00011900//"]
[{"$f":"ROW()","v":215},208,null,null,null,null,null,null,"000100/",null,null,null,null,null,null,"00011900//"]
[{"$f":"ROW()","v":216},209,null,null,null,null,null,null,"000100/",null,null,null,null,null,null,"00011900//"]
[{"$f":"ROW()","v":217},210,null,null,null,null,null,null,"000100/",null,null,null,null,null,null,"00011900//"]
[{"$f":"ROW()","v":218},211,null,null,null,null,null,null,"000100/",null,null,null,null,null,null,"00011900//"]
[{"$f":"ROW()","v":219},212,null,null,null,null,null,null,"000100/",null,null,null,null,null,null,"00011900//"]
[{"$f":"ROW()","v":220},213,null,null,null,null,null,null,"000100/",null,null,null,null,null,null,"00011900//"]
[{"$f":"ROW()","v":221},214,null,null,null,null,null,null,"000100/",null,null,null,null,null,null,"00011900//"]
[{"$f":"ROW()","v":222},215,null,null,null,null,null,null,"000100/",null,null,null,null,null,null,"00011900//"]
[{"$f":"ROW()","v":223},216,null,null,null,null,null,null,"000100/",null,null,null,null,null,null,"00011900//"]
[{"$f":"ROW()","v":224},217,null,null,null,null,null,null,"000100/",null,null,null,null,null,null,"00011900//"]
[{"$f":"ROW()","v":225},218,null,null,null,null,null,null,"000100/",null,null,null,null,null,null,"00011900//"]
[{"$f":"ROW()","v":226},219,null,null,null,null,null,null,"000100/",null,null,null,null,null,null,"00011900//"]
[{"$f":"ROW()","v":227},220,null,null,null,null,null,null,"000100/",null,null,null,null,null,null,"00011900//"]
[{"$f":"ROW()","v":228},221,null,null,null,null,null,null,"000100/",null,null,null,null,null,null,"00011900//"]
[{"$f":"ROW()","v":229},222,null,null,null,null,null,null,"000100/",null,null,null,null,null,null,"00011900//"]
[{"$f":"ROW()","v":230},223,null,null,null,null,null,null,"000100/",null,null,null,null,null,null,"00011900//"]
[{"$f":"ROW()","v":231},224,null,null,null,null,null,null,"000100/",null,null,null,null,null,null,"00011900//"]
[{"$f":"ROW()","v":232},225,null,null,null,null,null,null,"000100/",null,null,null,null,null,null,"00011900//"]
[{"$f":"ROW()","v":233},226,null,null,null,null,null,null,"000100/",null,null,null,null,null,null,"00011900//"]
[{"$f":"ROW()","v":234},227,null,null,null,null,null,null,"000100/",null,null,null,null,null,null,"00011900//"]
[{"$f":"ROW()","v":235},228,null,null,null,null,null,null,"000100/",null,null,null,null,null,null,"00011900//"]
[{"$f":"ROW()","v":236},229,null,null,null,null,null,null,"000100/",null,null,null,null,null,null,"00011900//"]
[{"$f":"ROW()","v":237},230,null,null,null,null,null,null,"000100/",null,null,null,null,null,null,"00011900//"]
[{"$f":"ROW()","v":238},231,null,null,null,null,null,null,"000100/",null,null,null,null,null,null,"00011900//"]
[{"$f":"ROW()","v":239},232,null,null,null,null,null,null,"000100/",null,null,null,null,null,null,"00011900//"]
[{"$f":"ROW()","v":240},233,null,null,null,null,null,null,"000100/",null,null,null,null,null,null,"00011900//"]
[{"$f":"ROW()","v":241},234,null,null,null,null,null,null,"000100/",null,null,null,null,null,null,"00011900//"]
[{"$f":"ROW()","v":242},235,null,null,null,null,null,null,"000100/",null,null,null,null,null,null,"00011900//"]
[{"$f":"ROW()","v":243},236,null,null,null,null,null,null,"000100/",null,null,null,null,null,null,"00011900//"]
[{"$f":"ROW()","v":244},237,null,null,null,null,null,null,"000100/",null,null,null,null,null,null,"00011900//"]
[{"$f":"ROW()","v":245},238,null,null,null,null,null,null,"000100/",null,null,null,null,null,null,"00011900//"]
[{"$f":"ROW()","v":246},239,null,null,null,null,null,null,"000100/",null,null,null,null,null,null,"00011900//"]
[{"$f":"ROW()","v":247},240,null,null,null,null,null,null,"000100/",null,null,null,null,null,null,"00011900//"]
[{"$f":"ROW()","v":248},241,null,null,null,null,null,null,"000100/",null,null,null,null,null,null,"00011900//"]
[{"$f":"ROW()","v":249},242,null,null,null,null,null,null,"000100/",null,null,null,null,null,null,"00011900//"]
[{"$f":"ROW()","v":250},243,null,null,null,null,null,null,"000100/",null,null,null,null,null,null,"00011900//"]
[{"$f":"ROW()","v":251},244,null,null,null,null,null,null,"000100/",null,null,null,null,null,null,"00011900//"]
[{"$f":"ROW()","v":252},245,null,null,null,null,null,null,"000100/",null,null,null,null,null,null,"00011900//"]
[{"$f":"ROW()","v":253},246,null,null,null,null,null,null,"000100/",null,null,null,null,null,null,"00011900//"]
[{"$f":"ROW()","v":254},247,null,null,null,null,null,null,"000100/",null,null,null,null,null,null,"00011900//"]
[{"$f":"ROW()","v":255},248,null,null,null,null,null,null,"000100/",null,null,null,null,null,null,"00011900//"]
[{"$f":"ROW()","v":256},249,null,null,null,null,null,null,"000100/",null,null,null,null,null,null,"00011900//"]
[{"$f":"ROW()","v":257},250,null,null,null,null,null,null,"000100/",null,null,null,null,null,null,"00011900//"]
[{"$f":"ROW()","v":258},251,null,null,null,null,null,null,"000100/",null,null,null,null,null,null,"00011900//"]
[{"$f":"ROW()","v":259},252,null,null,null,null,null,null,"000100/",null,null,null,null,null,null,"00011900//"]
[{"$f":"ROW()","v":260},253,null,null,null,null,null,null,"000100/",null,null,null,null,null,null,"00011900//"]
[{"$f":"ROW()","v":261},254,null,null,null,null,null,null,"000100/",null,null,null,null,null,null,"00011900//"]
[{"$f":"ROW()","v":262},255,null,null,null,null,null,null,"000100/",null,null,null,null,null,null,"00011900//"]
[{"$f":"ROW()","v":263},256,null,null,null,null,null,null,"000100/",null,null,null,null,null,null,"00011900//"]
[{"$f":"ROW()","v":264},257,null,null,null,null,null,null,"000100/",null,null,null,null,null,null,"00011900//"]
[{"$f":"ROW()","v":265},258,null,null,null,null,null,null,{"$f":"IF(C265=\"VOID\",\"\",(TEXT(G265,\"DD\")&TEXT(G265,\"MM\")&TEXT(G265,\"yy\")&\"/\"&H265))","v":"000100/"},null,null,null,null,null,null,{"$f":"IF(C265=\"VOID\",\"\",(TEXT(O265,\"DD\")&TEXT(O265,\"MM\")&TEXT(O265,\"YYYY\")&\"/\"&UPPER(LEFT(M265,1))&\"/\"&UPPER(LEFT(N265,4))))","v":"00011900//"}]
[{"$f":"ROW()","v":266},259,null,null,null,null,null,null,"000100/",null,null,null,null,null,null,"00011900//"]
[{"$f":"ROW()","v":267},260,null,null,null,null,null,null,"000100/",null,null,null,null,null,null,"00011900//"]
[{"$f":"ROW()","v":268},261,null,null,null,null,null,null,"000100/",null,null,null,null,null,null,"00011900//"]
[{"$f":"ROW()","v":269},262,null,null,null,null,null,null,"000100/",null,null,null,null,null,null,"00011900//"]
[{"$f":"ROW()","v":270},263,null,null,null,null,null,null,"000100/",null,null,null,null,null,null,"00011900//"]
[{"$f":"ROW()","v":271},264,null,null,null,null,null,null,"000100/",null,null,null,null,null,null,"00011900//"]
[{"$f":"ROW()","v":272},265,null,null,null,null,null,null,"000100/",null,null,null,null,null,null,"00011900//"]
[{"$f":"ROW()","v":273},266,null,null,null,null,null,null,"000100/",null,null,null,null,null,null,"00011900//"]
[{"$f":"ROW()","v":274},267,null,null,null,null,null,null,"000100/",null,null,null,null,null,null,"00011900//"]
[{"$f":"ROW()","v":275},268,null,null,null,null,null,null,"000100/",null,null,null,null,null,null,"00011900//"]
[{"$f":"ROW()","v":276},269,null,null,null,null,null,null,"000100/",null,null,null,null,null,null,"00011900//"]
[{"$f":"ROW()","v":277},270,null,null,null,null,null,null,"000100/",null,null,null,null,null,null,"00011900//"]
[{"$f":"ROW()","v":278},271,null,null,null,null,null,null,"000100/",null,null,null,null,null,null,"00011900//"]
[{"$f":"ROW()","v":279},272,null,null,null,null,null,null,"000100/",null,null,null,null,null,null,"00011900//"]
[{"$f":"ROW()","v":280},273,null,null,null,null,null,null,"000100/",null,null,null,null,null,null,"00011900//"]
[{"$f":"ROW()","v":281},274,null,null,null,null,null,null,"000100/",null,null,null,null,null,null,"00011900//"]
[{"$f":"ROW()","v":282},275,null,null,null,null,null,null,"000100/",null,null,null,null,null,null,"00011900//"]
[{"$f":"ROW()","v":283},276,null,null,null,null,null,null,"000100/",null,null,null,null,null,null,"00011900//"]
[{"$f":"ROW()","v":284},277,null,null,null,null,null,null,"000100/",null,null,null,null,null,null,"00011900//"]
[{"$f":"ROW()","v":285},278,null,null,null,null,null,null,"000100/",null,null,null,null,null,null,"00011900//"]
[{"$f":"ROW()","v":286},279,null,null,null,null,null,null,"000100/",null,null,null,null,null,null,"00011900//"]
[{"$f":"ROW()","v":287},280,null,null,null,null,null,null,"000100/",null,null,null,null,null,null,"00011900//"]
[{"$f":"ROW()","v":288},281,null,null,null,null,null,null,"000100/",null,null,null,null,null,null,"00011900//"]
[{"$f":"ROW()","v":289},282,null,null,null,null,null,null,"000100/",null,null,null,null,null,null,"00011900//"]
[{"$f":"ROW()","v":290},283,null,null,null,null,null,null,"000100/",null,null,null,null,null,null,"00011900//"]
[{"$f":"ROW()","v":291},284,null,null,null,null,null,null,"000100/",null,null,null,null,null,null,"00011900//"]
[{"$f":"ROW()","v":292},285,null,null,null,null,null,null,"000100/",null,null,null,null,null,null,"00011900//"]
[{"$f":"ROW()","v":293},286,null,null,null,null,null,null,"000100/",null,null,null,null,null,null,"00011900//"]
[{"$f":"ROW()","v":294},287,null,null,null,null,null,null,"000100/",null,null,null,null,null,null,"00011900//"]
[{"$f":"ROW()","v":295},288,null,null,null,null,null,null,"000100/",null,null,null,null,null,null,"00011900//"]
[{"$f":"ROW()","v":296},289,null,null,null,null,null,null,"000100/",null,null,null,null,null,null,"00011900//"]
[{"$f":"ROW()","v":297},290,null,null,null,null,null,null,"000100/",null,null,null,null,null,null,"00011900//"]
[{"$f":"ROW()","v":298},291,null,null,null,null,null,null,"000100/",null,null,null,null,null,null,"00011900//"]
[{"$f":"ROW()","v":299},292,null,null,null,null,null,null,"000100/",null,null,null,null,null,null,"00011900//"]
[{"$f":"ROW()","v":300},293,null,null,null,null,null,null,"000100/",null,null,null,null,null,null,"00011900//"]
[{"$f":"ROW()","v":301},294,null,null,null,null,null,null,"000100/",null,null,null,null,null,null,"00011900//"]
[{"$f":"ROW()","v":302},295,null,null,null,null,null,null,"000100/",null,null,null,null,null,null,"00011900//"]
[{"$f":"ROW()","v":303},296,null,null,null,null,null,null,"000100/",null,null,null,null,null,null,"00011900//"]
[{"$f":"ROW()","v":304},297,null,null,null,null,null,null,"000100/",null,null,null,null,null,null,"00011900//"]
[{"$f":"ROW()","v":305},298,null,null,null,null,null,null,"000100/",null,null,null,null,null,null,"00011900//"]
[{"$f":"ROW()","v":306},299,null,null,null,null,null,null,"000100/",null,null,null,null,null,null,"00011900//"]
[{"$f":"ROW()","v":307},300,null,null,null,null,null,null,"000100/",null,null,null,null,null,null,"00011900//"]
[{"$f":"ROW()","v":308},301,null,null,null,null,null,null,"000100/",null,null,null,null,null,null,"00011900//"]
[{"$f":"ROW()","v":309},302,null,null,null,null,null,null,"000100/",null,null,null,null,null,null,"00011900//"]
[{"$f":"ROW()","v":310},303,null,null,null,null,null,null,"000100/",null,null,null,null,null,null,"00011900//"]
[{"$f":"ROW()","v":311},304,null,null,null,null,null,null,"000100/",null,null,null,null,null,null,"00011900//"]
[{"$f":"ROW()","v":312},305,null,null,null,null,null,null,"000100/",null,null,null,null,null,null,"00011900//"]
[{"$f":"ROW()","v":313},306,null,null,null,null,null,null,"000100/",null,null,null,null,null,null,"00011900//"]
[{"$f":"ROW()","v":314},307,null,null,null,null,null,null,"000100/",null,null,null,null,null,null,"00011900//"]
[{"$f":"ROW()","v":315},308,null,null,null,null,null,null,"000100/",null,null,null,null,null,null,"00011900//"]
[{"$f":"ROW()","v":316},309,null,null,null,null,null,null,"000100/",null,null,null,null,null,null,"00011900//"]
[{"$f":"ROW()","v":317},310,null,null,null,null,null,null,"000100/",null,null,null,null,null,null,"00011900//"]
[{"$f":"ROW()","v":318},311,null,null,null,null,null,null,"000100/",null,null,null,null,null,null,"00011900//"]
[{"$f":"ROW()","v":319},312,null,null,null,null,null,null,"000100/",null,null,null,null,null,null,"00011900//"]
[{"$f":"ROW()","v":320},313,null,null,null,null,null,null,"000100/",null,null,null,null,null,null,"00011900//"]
[{"$f":"ROW()","v":321},314,null,null,null,null,null,null,"000100/",null,null,null,null,null,null,"00011900//"]
[{"$f":"ROW()","v":322},315,null,null,null,null,null,null,"000100/",null,null,null,null,null,null,"00011900//"]
[{"$f":"ROW()","v":323},316,null,null,null,null,null,null,"000100/",null,null,null,null,null,null,"00011900//"]
[{"$f":"ROW()","v":324},317,null,null,null,null,null,null,"000100/",null,null,null,null,null,null,"00011900//"]
[{"$f":"ROW()","v":325},318,null,null,null,null,null,null,"000100/",null,null,null,null,null,null,"00011900//"]
[{"$f":"ROW()","v":326},319,null,null,null,null,null,null,"000100/",null,null,null,null,null,null,"00011900//"]
[{"$f":"ROW()","v":327},320,null,null,null,null,null,null,"000100/",null,null,null,null,null,null,"00011900//"]
[{"$f":"ROW()","v":328},321,null,null,null,null,null,null,"000100/",null,null,null,null,null,null,"00011900//"]
[{"$f":"ROW()","v":329},322,null,null,null,null,null,null,{"$f":"IF(C329=\"VOID\",\"\",(TEXT(G329,\"DD\")&TEXT(G329,\"MM\")&TEXT(G329,\"yy\")&\"/\"&H329))","v":"000100/"},null,null,null,null,null,null,{"$f":"IF(C329=\"VOID\",\"\",(TEXT(O329,\"DD\")&TEXT(O329,\"MM\")&TEXT(O329,\"YYYY\")&\"/\"&UPPER(LEFT(M329,1))&\"/\"&UPPER(LEFT(N329,4))))","v":"00011900//"}]
[{"$f":"ROW()","v":330},323,null,null,null,null,null,null,"000100/",null,null,null,null,null,null,"00011900//"]
[{"$f":"ROW()","v":331},324,null,null,null,null,null,null,"000100/",null,null,null,null,null,null,"00011900//"]
[{"$f":"ROW()","v":332},325,null,null,null,null,null,null,"000100/",null,null,null,null,null,null,"00011900//"]
[{"$f":"ROW()","v":333},326,null,null,null,null,null,null,"000100/",null,null,null,null,null,null,"00011900//"]
[{"$f":"ROW()","v":334},327,null,null,null,null,null,null,"000100/",null,null,null,null,null,null,"00011900//"]
[{"$f":"ROW()","v":335},328,null,null,null,null,null,null,"000100/",null,null,null,null,null,null,"00011900//"]
[{"$f":"ROW()","v":336},329,null,null,null,null,null,null,"000100/",null,null,null,null,null,null,"00011900//"]
[{"$f":"ROW()","v":337},330,null,null,null,null,null,null,"000100/",null,null,null,null,null,null,"00011900//"]
[{"$f":"ROW()","v":338},331,null,null,null,null,null,null,"000100/",null,null,null,null,null,null,"00011900//"]
[{"$f":"ROW()","v":339},332,null,null,null,null,null,null,"000100/",null,null,null,null,null,null,"00011900//"]
[{"$f":"ROW()","v":340},333,null,null,null,null,null,null,"000100/",null,null,null,null,null,null,"00011900//"]
[{"$f":"ROW()","v":341},334,null,null,null,null,null,null,"000100/",null,null,null,null,null,null,"00011900//"]
[{"$f":"ROW()","v":342},335,null,null,null,null,null,null,"000100/",null,null,null,null,null,null,"00011900//"]
[{"$f":"ROW()","v":343},336,null,null,null,null,null,null,"000100/",null,null,null,null,null,null,"00011900//"]
[{"$f":"ROW()","v":344},337,null,null,null,null,null,null,"000100/",null,null,null,null,null,null,"00011900//"]
[{"$f":"ROW()","v":345},338,null,null,null,null,null,null,"000100/",null,null,null,null,null,null,"00011900//"]
[{"$f":"ROW()","v":346},339,null,null,null,null,null,null,"000100/",null,null,null,null,null,null,"00011900//"]
[{"$f":"ROW()","v":347},340,null,null,null,null,null,null,"000100/",null,null,null,null,null,null,"00011900//"]
[{"$f":"ROW()","v":348},341,null,null,null,null,null,null,"000100/",null,null,null,null,null,null,"00011900//"]
[{"$f":"ROW()","v":349},342,null,null,null,null,null,null,"000100/",null,null,null,null,null,null,"00011900//"]
[{"$f":"ROW()","v":350},343,null,null,null,null,null,null,"000100/",null,null,null,null,null,null,"00011900//"]
[{"$f":"ROW()","v":351},344,null,null,null,null,null,null,"000100/",null,null,null,null,null,null,"00011900//"]
[{"$f":"ROW()","v":352},345,null,null,null,null,null,null,"000100/",null,null,null,null,null,null,"00011900//"]
[{"$f":"ROW()","v":353},346,null,null,null,null,null,null,"000100/",null,null,null,null,null,null,"00011900//"]
[{"$f":"ROW()","v":354},347,null,null,null,null,null,null,"000100/",null,null,null,null,null,null,"00011900//"]
[{"$f":"ROW()","v":355},348,null,null,null,null,null,null,"000100/",null,null,null,null,null,null,"00011900//"]
[{"$f":"ROW()","v":356},349,null,null,null,null,null,null,"000100/",null,null,null,null,null,null,"00011900//"]
[{"$f":"ROW()","v":357},350,null,null,null,null,null,null,"000100/",null,null,null,null,null,null,"00011900//"]
[{"$f":"ROW()","v":358},351,null,null,null,null,null,null,"000100/",null,null,null,null,null,null,"00011900//"]
[{"$f":"ROW()","v":359},352,null,null,null,null,null,null,"000100/",null,null,null,null,null,null,"00011900//"]
[{"$f":"ROW()","v":360},353,null,null,null,null,null,null,"000100/",null,null,null,null,null,null,"00011900//"]
[{"$f":"ROW()","v":361},354,null,null,null,null,null,null,"000100/",null,null,null,null,null,null,"00011900//"]
[{"$f":"ROW()","v":362},355,null,null,null,null,null,null,"000100/",null,null,null,null,null,null,"00011900//"]
[{"$f":"ROW()","v":363},356,null,null,null,null,null,null,"000100/",null,null,null,null,null,null,"00011900//"]
[{"$f":"ROW()","v":364},357,null,null,null,null,null,null,"000100/",null,null,null,null,null,null,"00011900//"]
[{"$f":"ROW()","v":365},358,null,null,null,null,null,null,"000100/",null,null,null,null,null,null,"00011900//"]
[{"$f":"ROW()","v":366},359,null,null,null,null,null,null,"000100/",null,null,null,null,null,null,"00011900//"]
[{"$f":"ROW()","v":367},360,null,null,null,null,null,null,"000100/",null,null,null,null,null,null,"00011900//"]
[{"$f":"ROW()","v":368},361,null,null,null,null,null,null,"000100/",null,null,null,null,null,null,"00011900//"]
[{"$f":"ROW()","v":369},362,null,null,null,null,null,null,"000100/",null,null,null,null,null,null,"00011900//"]
[{"$f":"ROW()","v":370},363,null,null,null,null,null,null,"000100/",null,null,null,null,null,null,"00011900//"]
[{"$f":"ROW()","v":371},364,null,null,null,null,null,null,"000100/",null,null,null,null,null,null,"00011900//"]
[{"$f":"ROW()","v":372},365,null,null,null,null,null,null,"000100/",null,null,null,null,null,null,"00011900//"]
[{"$f":"ROW()","v":373},366,null,null,null,null,null,null,"000100/",null,null,null,null,null,null,"00011900//"]
[{"$f":"ROW()","v":374},367,null,null,null,null,null,null,"000100/",null,null,null,null,null,null,"00011900//"]
[{"$f":"ROW()","v":375},368,null,null,null,null,null,null,"000100/",null,null,null,null,null,null,"00011900//"]
[{"$f":"ROW()","v":376},369,null,null,null,null,null,null,"000100/",null,null,null,null,null,null,"00011900//"]
[{"$f":"ROW()","v":377},370,null,null,null,null,null,null,"000100/",null,null,null,null,null,null,"00011900//"]
[{"$f":"ROW()","v":378},371,null,null,null,null,null,null,"000100/",null,null,null,null,null,null,"00011900//"]
[{"$f":"ROW()","v":379},372,null,null,null,null,null,null,"000100/",null,null,null,null,null,null,"00011900//"]
[{"$f":"ROW()","v":380},373,null,null,null,null,null,null,"000100/",null,null,null,null,null,null,"00011900//"]
[{"$f":"ROW()","v":381},374,null,null,null,null,null,null,"000100/",null,null,null,null,null,null,"00011900//"]
[{"$f":"ROW()","v":382},375,null,null,null,null,null,null,"000100/",null,null,null,null,null,null,"00011900//"]
[{"$f":"ROW()","v":383},376,null,null,null,null,null,null,"000100/",null,null,null,null,null,null,"00011900//"]
[{"$f":"ROW()","v":384},377,null,null,null,null,null,null,"000100/",null,null,null,null,null,null,"00011900//"]
[{"$f":"ROW()","v":385},378,null,null,null,null,null,null,"000100/",null,null,null,null,null,null,"00011900//"]
[{"$f":"ROW()","v":386},379,null,null,null,null,null,null,"000100/",null,null,null,null,null,null,"00011900//"]
[{"$f":"ROW()","v":387},380,null,null,null,null,null,null,"000100/",null,null,null,null,null,null,"00011900//"]
[{"$f":"ROW()","v":388},381,null,null,null,null,null,null,"000100/",null,null,null,null,null,null,"00011900//"]
[{"$f":"ROW()","v":389},382,null,null,null,null,null,null,"000100/",null,null,null,null,null,null,"00011900//"]
[{"$f":"ROW()","v":390},383,null,null,null,null,null,null,"000100/",null,null,null,null,null,null,"00011900//"]
[{"$f":"ROW()","v":391},384,null,null,null,null,null,null,"000100/",null,null,null,null,null,null,"00011900//"]
[{"$f":"ROW()","v":392},385,null,null,null,null,null,null,"000100/",null,null,null,null,null,null,"00011900//"]
[{"$f":"ROW()","v":393},386,null,null,null,null,null,null,{"$f":"IF(C393=\"VOID\",\"\",(TEXT(G393,\"DD\")&TEXT(G393,\"MM\")&TEXT(G393,\"yy\")&\"/\"&H393))","v":"000100/"},null,null,null,null,null,null,{"$f":"IF(C393=\"VOID\",\"\",(TEXT(O393,\"DD\")&TEXT(O393,\"MM\")&TEXT(O393,\"YYYY\")&\"/\"&UPPER(LEFT(M393,1))&\"/\"&UPPER(LEFT(N393,4))))","v":"00011900//"}]
[{"$f":"ROW()","v":394},387,null,null,null,null,null,null,"000100/",null,null,null,null,null,null,"00011900//"]
[{"$f":"ROW()","v":395},388,null,null,null,null,null,null,"000100/",null,null,null,null,null,null,"00011900//"]
[{"$f":"ROW()","v":396},389,null,null,null,null,null,null,"000100/",null,null,null,null,null,null,"00011900//"]
[{"$f":"ROW()","v":397},390,null,null,null,null,null,null,"000100/",null,null,null,null,null,null,"00011900//"]
[{"$f":"ROW()","v":398},391,null,null,null,null,null,null,"000100/",null,null,null,null,null,null,"00011900//"]
[{"$f":"ROW()","v":399},392,null,null,null,null,null,null,"000100/",null,null,null,null,null,null,"00011900//"]
[{"$f":"ROW()","v":400},393,null,null,null,null,null,null,"000100/",null,null,null,null,null,null,"00011900//"]
[{"$f":"ROW()","v":401},394,null,null,null,null,null,null,"000100/",null,null,null,null,null,null,"00011900//"]
[{"$f":"ROW()","v":402},395,null,null,null,null,null,null,"000100/",null,null,null,null,null,null,"00011900//"]
[{"$f":"ROW()","v":403},396,null,null,null,null,null,null,"000100/",null,null,null,null,null,null,"00011900//"]
[{"$f":"ROW()","v":404},397,null,null,null,null,null,null,"000100/",null,null,null,null,null,null,"00011900//"]
[{"$f":"ROW()","v":405},398,null,null,null,null,null,null,"000100/",null,null,null,null,null,null,"00011900//"]
[{"$f":"ROW()","v":406},399,null,null,null,null,null,null,"000100/",null,null,null,null,null,null,"00011900//"]
[{"$f":"ROW()","v":407},400,null,null,null,null,null,null,"000100/",null,null,null,null,null,null,"00011900//"]
[{"$f":"ROW()","v":408},401,null,null,null,null,null,null,"000100/",null,null,null,null,null,null,"00011900//"]
[{"$f":"ROW()","v":409},402,null,null,null,null,null,null,"000100/",null,null,null,null,null,null,"00011900//"]
[{"$f":"ROW()","v":410},403,null,null,null,null,null,null,"000100/",null,null,null,null,null,null,"00011900//"]
[{"$f":"ROW()","v":411},404,null,null,null,null,null,null,"000100/",null,null,null,null,null,null,"00011900//"]
[{"$f":"ROW()","v":412},405,null,null,null,null,null,null,"000100/",null,null,null,null,null,null,"00011900//"]
[{"$f":"ROW()","v":413},406,null,null,null,null,null,null,"000100/",null,null,null,null,null,null,"00011900//"]
[{"$f":"ROW()","v":414},407,null,null,null,null,null,null,"000100/",null,null,null,null,null,null,"00011900//"]
[{"$f":"ROW()","v":415},408,null,null,null,null,null,null,"000100/",null,null,null,null,null,null,"00011900//"]
[{"$f":"ROW()","v":416},409,null,null,null,null,null,null,"000100/",null,null,null,null,null,null,"00011900//"]
[{"$f":"ROW()","v":417},410,null,null,null,null,null,null,"000100/",null,null,null,null,null,null,"00011900//"]
[{"$f":"ROW()","v":418},411,null,null,null,null,null,null,"000100/",null,null,null,null,null,null,"00011900//"]
[{"$f":"ROW()","v":419},412,null,null,null,null,null,null,"000100/",null,null,null,null,null,null,"00011900//"]
[{"$f":"ROW()","v":420},413,null,null,null,null,null,null,"000100/",null,null,null,null,null,null,"00011900//"]
[{"$f":"ROW()","v":421},414,null,null,null,null,null,null,"000100/",null,null,null,null,null,null,"00011900//"]
[{"$f":"ROW()","v":422},415,null,null,null,null,null,null,"000100/",null,null,null,null,null,null,"00011900//"]
[{"$f":"ROW()","v":423},416,null,null,null,null,null,null,"000100/",null,null,null,null,null,null,"00011900//"]
[{"$f":"ROW()","v":424},417,null,null,null,null,null,null,"000100/",null,null,null,null,null,null,"00011900//"]
[{"$f":"ROW()","v":425},418,null,null,null,null,null,null,"000100/",null,null,null,null,null,null,"00011900//"]
[{"$f":"ROW()","v":426},419,null,null,null,null,null,null,"000100/",null,null,null,null,null,null,"00011900//"]
[{"$f":"ROW()","v":427},420,null,null,null,null,null,null,"000100/",null,null,null,null,null,null,"00011900//"]
[{"$f":"ROW()","v":428},421,null,null,null,null,null,null,"000100/",null,null,null,null,null,null,"00011900//"]
[{"$f":"ROW()","v":429},422,null,null,null,null,null,null,"000100/",null,null,null,null,null,null,"00011900//"]
[{"$f":"ROW()","v":430},423,null,null,null,null,null,null,"000100/",null,null,null,null,null,null,"00011900//"]
[{"$f":"ROW()","v":431},424,null,null,null,null,null,null,"000100/",null,null,null,null,null,null,"00011900//"]
[{"$f":"ROW()","v":432},425,null,null,null,null,null,null,"000100/",null,null,null,null,null,null,"00011900//"]
[{"$f":"ROW()","v":433},426,null,null,null,null,null,null,"000100/",null,null,null,null,null,null,"00011900//"]
[{"$f":"ROW()","v":434},427,null,null,null,null,null,null,"000100/",null,null,null,null,null,null,"00011900//"]
[{"$f":"ROW()","v":435},428,null,null,null,null,null,null,"000100/",null,null,null,null,null,null,"00011900//"]
[{"$f":"ROW()","v":436},429,null,null,null,null,null,null,"000100/",null,null,null,null,null,null,"00011900//"]
[{"$f":"ROW()","v":437},430,null,null,null,null,null,null,"000100/",null,null,null,null,null,null,"00011900//"]
[{"$f":"ROW()","v":438},431,null,null,null,null,null,null,"000100/",null,null,null,null,null,null,"00011900//"]
[{"$f":"ROW()","v":439},432,null,null,null,null,null,null,"000100/",null,null,null,null,null,null,"00011900//"]
[{"$f":"ROW()","v":440},433,null,null,null,null,null,null,"000100/",null,null,null,null,null,null,"00011900//"]
[{"$f":"ROW()","v":441},434,null,null,null,null,null,null,"000100/",null,null,null,null,null,null,"00011900//"]
[{"$f":"ROW()","v":442},435,null,null,null,null,null,null,"000100/",null,null,null,null,null,null,"00011900//"]
[{"$f":"ROW()","v":443},436,null,null,null,null,null,null,"000100/",null,null,null,null,null,null,"00011900//"]
[{"$f":"ROW()","v":444},437,null,null,null,null,null,null,"000100/",null,null,null,null,null,null,"00011900//"]
[{"$f":"ROW()","v":445},438,null,null,null,null,null,null,"000100/",null,null,null,null,null,null,"00011900//"]
[{"$f":"ROW()","v":446},439,null,null,null,null,null,null,"000100/",null,null,null,null,null,null,"00011900//"]
[{"$f":"ROW()","v":447},440,null,null,null,null,null,null,"000100/",null,null,null,null,null,null,"00011900//"]
[{"$f":"ROW()","v":448},441,null,null,null,null,null,null,"000100/",null,null,null,null,null,null,"00011900//"]
[{"$f":"ROW()","v":449},442,null,null,null,null,null,null,"000100/",null,null,null,null,null,null,"00011900//"]
[{"$f":"ROW()","v":450},443,null,null,null,null,null,null,"000100/",null,null,null,null,null,null,"00011900//"]
[{"$f":"ROW()","v":451},444,null,null,null,null,null,null,"000100/",null,null,null,null,null,null,"00011900//"]
[{"$f":"ROW()","v":452},445,null,null,null,null,null,null,"000100/",null,null,null,null,null,null,"00011900//"]
[{"$f":"ROW()","v":453},446,null,null,null,null,null,null,"000100/",null,null,null,null,null,null,"00011900//"]
[{"$f":"ROW()","v":454},447,null,null,null,null,null,null,"000100/",null,null,null,null,null,null,"00011900//"]
[{"$f":"ROW()","v":455},448,null,null,null,null,null,null,"000100/",null,null,null,null,null,null,"00011900//"]
[{"$f":"ROW()","v":456},449,null,null,null,null,null,null,"000100/",null,null,null,null,null,null,"00011900//"]
[{"$f":"ROW()","v":457},450,null,null,null,null,null,null,{"$f":"IF(C457=\"VOID\",\"\",(TEXT(G457,\"DD\")&TEXT(G457,\"MM\")&TEXT(G457,\"yy\")&\"/\"&H457))","v":"000100/"},null,null,null,null,null,null,{"$f":"IF(C457=\"VOID\",\"\",(TEXT(O457,\"DD\")&TEXT(O457,\"MM\")&TEXT(O457,\"YYYY\")&\"/\"&UPPER(LEFT(M457,1))&\"/\"&UPPER(LEFT(N457,4))))","v":"00011900//"}]
[{"$f":"ROW()","v":458},451,null,null,null,null,null,null,"000100/",null,null,null,null,null,null,"00011900//"]
[{"$f":"ROW()","v":459},452,null,null,null,null,null,null,"000100/",null,null,null,null,null,null,"00011900//"]
[{"$f":"ROW()","v":460},453,null,null,null,null,null,null,"000100/",null,null,null,null,null,null,"00011900//"]
[{"$f":"ROW()","v":461},454,null,null,null,null,null,null,"000100/",null,null,null,null,null,null,"00011900//"]
[{"$f":"ROW()","v":462},455,null,null,null,null,null,null,"000100/",null,null,null,null,null,null,"00011900//"]
[{"$f":"ROW()","v":463},456,null,null,null,null,null,null,"000100/",null,null,null,null,null,null,"00011900//"]
[{"$f":"ROW()","v":464},457,null,null,null,null,null,null,"000100/",null,null,null,null,null,null,"00011900//"]
[{"$f":"ROW()","v":465},458,null,null,null,null,null,null,"000100/",null,null,null,null,null,null,"00011900//"]
[{"$f":"ROW()","v":466},459,null,null,null,null,null,null,"000100/",null,null,null,null,null,null,"00011900//"]
[{"$f":"ROW()","v":467},460,null,null,null,null,null,null,"000100/",null,null,null,null,null,null,"00011900//"]
[{"$f":"ROW()","v":468},461,null,null,null,null,null,null,"000100/",null,null,null,null,null,null,"00011900//"]
[{"$f":"ROW()","v":469},462,null,null,null,null,null,null,"000100/",null,null,null,null,null,null,"00011900//"]
[{"$f":"ROW()","v":470},463,null,null,null,null,null,null,"000100/",null,null,null,null,null,null,"00011900//"]
[{"$f":"ROW()","v":471},464,null,null,null,null,null,null,"000100/",null,null,null,null,null,null,"00011900//"]
[{"$f":"ROW()","v":472},465,null,null,null,null,null,null,"000100/",null,null,null,null,null,null,"00011900//"]
[{"$f":"ROW()","v":473},466,null,null,null,null,null,null,"000100/",null,null,null,null,null,null,"00011900//"]
[{"$f":"ROW()","v":474},467,null,null,null,null,null,null,"000100/",null,null,null,null,null,null,"00011900//"]
[{"$f":"ROW()","v":475},468,null,null,null,null,null,null,"000100/",null,null,null,null,null,null,"00011900//"]
[{"$f":"ROW()","v":476},469,null,null,null,null,null,null,"000100/",null,null,null,null,null,null,"00011900//"]
[{"$f":"ROW()","v":477},470,null,null,null,null,null,null,"000100/",null,null,null,null,null,null,"00011900//"]
[{"$f":"ROW()","v":478},471,null,null,null,null,null,null,"000100/",null,null,null,null,null,null,"00011900//"]
[{"$f":"ROW()","v":479},472,null,null,null,null,null,null,"000100/",null,null,null,null,null,null,"00011900//"]
[{"$f":"ROW()","v":480},473,null,null,null,null,null,null,"000100/",null,null,null,null,null,null,"00011900//"]
[{"$f":"ROW()","v":481},474,null,null,null,null,null,null,"000100/",null,null,null,null,null,null,"00011900//"]
[{"$f":"ROW()","v":482},475,null,null,null,null,null,null,"000100/",null,null,null,null,null,null,"00011900//"]
[{"$f":"ROW()","v":483},476,null,null,null,null,null,null,"000100/",null,null,null,null,null,null,"00011900//"]
[{"$f":"ROW()","v":484},477,null,null,null,null,null,null,"000100/",null,null,null,null,null,null,"00011900//"]
[{"$f":"ROW()","v":485},478,null,null,null,null,null,null,"000100/",null,null,null,null,null,null,"00011900//"]
[{"$f":"ROW()","v":486},479,null,null,null,null,null,null,"000100/",null,null,null,null,null,null,"00011900//"]
[{"$f":"ROW()","v":487},480,null,null,null,null,null,null,"000100/",null,null,null,null,null,null,"00011900//"]
[{"$f":"ROW()","v":488},481,null,null,null,null,null,null,"000100/",null,null,null,null,null,null,"00011900//"]
[{"$f":"ROW()","v":489},482,null,null,null,null,null,null,"000100/",null,null,null,null,null,null,"00011900//"]
[{"$f":"ROW()","v":490},483,null,null,null,null,null,null,"000100/",null,null,null,null,null,null,"00011900//"]
[{"$f":"ROW()","v":491},484,null,null,null,null,null,null,"000100/",null,null,null,null,null,null,"00011900//"]
[{"$f":"ROW()","v":492},485,null,null,null,null,null,null,"000100/",null,null,null,null,null,null,"00011900//"]
[{"$f":"ROW()","v":493},486,null,null,null,null,null,null,"000100/",null,null,null,null,null,null,"00011900//"]
[{"$f":"ROW()","v":494},487,null,null,null,null,null,null,"000100/",null,null,null,null,null,null,"00011900//"]
[{"$f":"ROW()","v":495},488,null,null,null,null,null,null,"000100/",null,null,null,null,null,null,"00011900//"]
[{"$f":"ROW()","v":496},489,null,null,null,null,null,null,"000100/",null,null,null,null,null,null,"00011900//"]
[{"$f":"ROW()","v":497},490,null,null,null,null,null,null,"000100/",null,null,null,null,null,null,"00011900//"]
[{"$f":"ROW()","v":498},491,null,null,null,null,null,null,"000100/",null,null,null,null,null,null,"00011900//"]
[{"$f":"ROW()","v":499},492,null,null,null,null,null,null,"000100/",null,null,null,null,null,null,"00011900//"]
[{"$f":"ROW()","v":500},493,null,null,null,null,null,null,"000100/",null,null,null,null,null,null,"00011900//"]
[{"$f":"ROW()","v":501},494,null,null,null,null,null,null,"000100/",null,null,null,null,null,null,"00011900//"]
[{"$f":"ROW()","v":502},495,null,null,null,null,null,null,"000100/",null,null,null,null,null,null,"00011900//"]

{"sheet":"CMSF","index":2,"n_rows":54,"n_cols":16,"rows_kept":54,"cut":false,"hidden":false,"merged":[[43,8,44,9],[30,1,33,1],[30,2,33,2],[29,1,29,2],[4,1,4,6],[33,8,34,8],[33,9,34,9],[5,2,9,2],[5,3,9,3],[7,8,8,8],[29,8,30,9],[14,13,14,14],[23,13,23,14],[20,13,20,14],[22,13,22,14],[12,13,12,14],[10,13,10,14],[11,13,11,14],[5,5,9,5],[21,13,21,14],[53,13,54,15],[13,13,13,14],[25,13,25,14],[17,13,17,14],[18,13,18,14],[19,13,19,14],[16,13,16,14],[15,13,15,14],[24,13,24,14],[2,1,2,2],[2,3,2,9],[2,14,2,15],[5,13,9,14],[4,8,5,9],[5,15,9,15],[5,1,9,1],[5,6,9,6],[5,4,9,4],[7,9,8,9]]}
[]
[]
[null,"New Matter Starts                        Guidance:",null,"> First select Category Code from drop down list\n> Secondly enter the relevant Procurement Area, Access Point and number of starts\n> Only enter Categories where the number of Starts is > 0\n> Ensure you complete the table from top to bottom\n> Leave no gaps between entries\n> If you are reporting Zero Matter Starts please tick the box below",null,null,null,null,null,null,null,null,null,"CLR Guidance:","> Only applicable for Immigration providers\n> Immigration providers MUST complete ALL fields\n> If you have no CLR cases to report enter 0\n> Report information separately for Substantive & Bail applications\n> Report information separately for Asylum & Non-Asylum"]
[]
[null,"Civil",null,null,null,null,null,null,"Key to Category Codes"]
[null,"Category Code","Schedule Reference","Procurement Area","Access Point","Delivery Location","Starts",null,null,null,null,null,null,"Controlled Legal Representation (CLR)\nCategory Code",null,"Number of \nCLR cases"]
[]
[null,null,null,null,null,null,null,null,"Code:","Description"]
[]
[null,null,null,null,null,null,null,null,"AAP","Actions Against the Police etc."]
[null,null,null,null,null,null,null,null,"COM","Community Care",null,null,null,"Substantive CLR - Provider Asylum Grants"]
[null,null,null,null,null,null,null,null,"CON","Consumer/General Contract",null,null,null,"Substantive CLR - Independent Funding Adjudicator Asylum Grants"]
[null,null,null,null,null,null,null,null,"DEB","Debt",null,null,null,"Substantive CLR - Asylum Refusals"]
[null,null,null,null,null,null,null,null,"EDU","Education",null,null,null,"Substantive CLR - Asylum Withdrawals"]
[null,null,null,null,null,null,null,null,"EMP","Employment",null,null,null,"Substantive CLR - Provider Non Asylum Grants"]
[null,null,null,null,null,null,null,null,"ELA","Early Legal Advice",null,null,null,"Substantive CLR - Independent Funding Adjudicator Non Asylum Grants"]
[null,null,null,null,null,null,null,null,"HOU","Housing",null,null,null,"Substantive CLR - Non Asylum Refusals"]
[null,null,null,null,null,null,null,null,"IMMAS","Immigration – Asylum",null,null,null,"Substantive CLR - Non Asylum Withdrawals"]
[null,null,null,null,null,null,null,null,"IMMOT","Immigration Other Than Asylum",null,null,null,"Bail CLR - Provider Asylum Grants"]
[null,null,null,null,null,null,null,null,"MAT","Family ",null,null,null,"Bail CLR - Independent Funding Adjudicator Asylum Grants"]
[null,null,null,null,null,null,null,null,"MED","Clinical Negligence",null,null,null,"Bail CLR - Asylum Refusals"]
[null,null,null,null,null,null,null,null,"MHE","Mental Health",null,null,null,"Bail CLR - Asylum Withdrawals"]
[null,null,null,null,null,null,null,null,"MSC","Residual (Miscellaneous)",null,null,null,"Bail CLR - Provider Non Asylum Grants"]
[null,null,null,null,null,null,null,null,"PI","Personal Injury",null,null,null,"Bail CLR - Independent Funding Adjudicator Non Asylum Grants"]
[null,null,null,null,null,null,null,null,"PUB","Public Law",null,null,null,"Bail CLR - Non Asylum Refusals"]
[null,null,null,null,null,null,null,null,"WB","Welfare Benefits",null,null,null,"Bail CLR - Non Asylum Withdrawals"]
[null,null,null,null,null,null,null,null,"DISC","Discrimination"]
[]
[]
[null,"Mediation",null,null,null,null,null,null,"                < Tick here to indicate if you are reporting \n                   Zero Civil Matter Starts"]
[null,"Mediation Type","Matter Starts"]
[]
[]
[null,null,null,null,null,null,null,null,"Code:","Description"]
[]
[null,null,null,null,null,null,null,null,"MDCS","Child Only Sole"]
[null,null,null,null,null,null,null,null,"MDCC","Child Only Co"]
[null,null,null,null,null,null,null,null,"MDPS","Property & Finance Sole"]
[null,null,null,null,null,null,null,null,"MDPC","Property & Finance Co"]
[null,null,null,null,null,null,null,null,"MDAS","All Issues Sole"]
[null,null,null,null,null,null,null,null,"MDAC","All Issues Co"]
[]
[]
[null,null,null,null,null,null,null,null,"                < Tick here to indicate if you are reporting \n                   Zero Mediation Matter Starts"]
[]
[]
[]
[]
[]
[]
[]
[]
[]
[null,null,null,null,null,null,null,null,null,null,null,null,null,{"$f":"(\"© Crown Copyright \" &'Front Page'!$E$18 & \" - \" &'Front Page'!$D$18)","v":"© Crown Copyright OCTOBER 2025 - v1.37"}]

{"sheet":"Bulkload Crime","index":3,"n_rows":502,"n_cols":33,"rows_kept":502,"cut":false,"hidden":false,"merged":[[1,3,1,8],[2,3,2,6],[2,7,2,8],[2,27,2,28],[2,10,3,18],[3,1,3,2],[2,9,3,9],[3,3,3,8],[3,27,3,28]]}
[]
[]
[null,null,null,null,null,null,null,null,null,"Key Instructions:","> Complete ALL white fields - Failure to do this WILL result in your submission being rejected and your payment will be at risk!                                                                                          > Enter Stage Reached Code in first column BEFORE entering specific claim line details\n> Do NOT complete grey fields. Yellow fields are OPTIONAL - please complete only if applicable\n> For more detailed help and support please see Help Page (Or contact Online Support - Details on help page)                                                                                                                                                                                                   > Run Data Check prior to submitting your claim! If errors are found (highlighted orange) please correct and re-run check",null,null,null,null,null,null,null,null,null,null,null,"Save Progress","Save Progress",null,"Save Progress"]
[null,{"$f":"TRIM(UPPER('Front Page'!$C$8))&\" - \"&TRIM(UPPER('Front Page'!$C$9))&\" - \"&TRIM(UPPER('Front Page'!$C$10))","v":" -  - "},null,{"$f":"(\"© Crown Copyright \" &'Front Page'!$E$18 & \" - \" &'Front Page'!$D$18)","v":"© Crown Copyright OCTOBER 2025 - v1.37"}]
[null,null,null,{"$f":"TRIM(UPPER('Front Page'!C8))","v":""},{"$f":"TRIM(UPPER('Front Page'!C9))","v":""},{"$f":"TRIM('Front Page'!C10)","v":""},{"$f":"TRIM(UPPER('Front Page'!C11))","v":""}]
[null,"Line Number","Stage Reached             (Claim Code)","Fee Code","Client surname","Client Initial","Gender","Ethnicity","Disability","UFN","Representation Order Date","Standard Fee Category","Outcome for the client","Matter Type  ","Net Profit costs (excluding VAT)","Net Disbursement amount (excluding VAT)","Net Travel costs (excluding VAT)","Net Waiting costs (excluding VAT)","VAT Indicator","VAT Disbursements amount","Case concluded date ","No. of suspects/ defendants","No. of Police Station/court attendances","Police Station/ Court ID/ Prison ID","DSCC Number","MAAT ID","Prison law Prior Approval number","Duty Solicitor","Youth Court","Scheme ID","Residence Test"]
[null,null,"matterType=","FEE_CODE=","CLIENT_SURNAME=","CLIENT_FORENAME=","GENDER=","ETHNICITY=","DISABILITY=","UFN=","REP_ORDER_DATE=","STANDARD_FEE_CAT=","OUTCOME_CODE=","CRIME_MATTER_TYPE=","PROFIT_COST=","DISBURSEMENTS_AMOUNT=","TRAVEL_COSTS=","TRAVEL_WAITING_COSTS=","VAT_INDICATOR=","DISBURSEMENTS_VAT=","WORK_CONCLUDED_DATE=","NO_OF_SUSPECTS=","NO_OF_POLICE_STATION=","POLICE_STATION=","DSCC_NUMBER=","MAAT_ID=","PA_NUMBER=","DUTY_SOLICITOR=","YOUTH_COURT=","SCHEME_ID=","RESIDENCE_TEST=",null,{"$f":"SUM(IF(C7=\"PROK\",O7+P7+T7,IF(C7=\"PROL\",O7+P7+T7,IF(C7=\"PROM\",O7+P7+T7,IF(S7=\"Y\",1.175*(O7+P7+Q7+R7),(O7+P7+Q7+R7))))))+IF(C7=\"PROK\",IF(S7=\"Y\",0.175*(O7+P7+T7),0))+IF(C7=\"PROL\",IF(S7=\"Y\",0.175*(O7+P7+T7),0))+IF(C7=\"PROM\",IF(S7=\"Y\",0.175*(O7+P7+T7),0))","v":{"$error":"#VALUE!"}}]
[{"$f":"ROW()","v":8},1]
[{"$f":"ROW()","v":9},2]
[{"$f":"ROW()","v":10},3]
[{"$f":"ROW()","v":11},4]
[{"$f":"ROW()","v":12},5]
[{"$f":"ROW()","v":13},6]
[{"$f":"ROW()","v":14},7]
[{"$f":"ROW()","v":15},8]
[{"$f":"ROW()","v":16},9]
[{"$f":"ROW()","v":17},10]
[{"$f":"ROW()","v":18},11]
[{"$f":"ROW()","v":19},12]
[{"$f":"ROW()","v":20},13]
[{"$f":"ROW()","v":21},14]
[{"$f":"ROW()","v":22},15]
[{"$f":"ROW()","v":23},16]
[{"$f":"ROW()","v":24},17]
[{"$f":"ROW()","v":25},18]
[{"$f":"ROW()","v":26},19]
[{"$f":"ROW()","v":27},20]
[{"$f":"ROW()","v":28},21]
[{"$f":"ROW()","v":29},22]
[{"$f":"ROW()","v":30},23]
[{"$f":"ROW()","v":31},24]
[{"$f":"ROW()","v":32},25]
[{"$f":"ROW()","v":33},26]
[{"$f":"ROW()","v":34},27]
[{"$f":"ROW()","v":35},28]
[{"$f":"ROW()","v":36},29]
[{"$f":"ROW()","v":37},30]
[{"$f":"ROW()","v":38},31]
[{"$f":"ROW()","v":39},32]
[{"$f":"ROW()","v":40},33]
[{"$f":"ROW()","v":41},34]
[{"$f":"ROW()","v":42},35]
[{"$f":"ROW()","v":43},36]
[{"$f":"ROW()","v":44},37]
[{"$f":"ROW()","v":45},38]
[{"$f":"ROW()","v":46},39]
[{"$f":"ROW()","v":47},40]
[{"$f":"ROW()","v":48},41]
[{"$f":"ROW()","v":49},42]
[{"$f":"ROW()","v":50},43]
[{"$f":"ROW()","v":51},44]
[{"$f":"ROW()","v":52},45]
[{"$f":"ROW()","v":53},46]
[{"$f":"ROW()","v":54},47]
[{"$f":"ROW()","v":55},48]
[{"$f":"ROW()","v":56},49]
[{"$f":"ROW()","v":57},50]
[{"$f":"ROW()","v":58},51]
[{"$f":"ROW()","v":59},52]
[{"$f":"ROW()","v":60},53]
[{"$f":"ROW()","v":61},54]
[{"$f":"ROW()","v":62},55]
[{"$f":"ROW()","v":63},56]
[{"$f":"ROW()","v":64},57]
[{"$f":"ROW()","v":65},58]
[{"$f":"ROW()","v":66},59]
[{"$f":"ROW()","v":67},60]
[{"$f":"ROW()","v":68},61]
[{"$f":"ROW()","v":69},62]
[{"$f":"ROW()","v":70},63]
[{"$f":"ROW()","v":71},64]
[{"$f":"ROW()","v":72},65]
[{"$f":"ROW()","v":73},66]
[{"$f":"ROW()","v":74},67]
[{"$f":"ROW()","v":75},68]
[{"$f":"ROW()","v":76},69]
[{"$f":"ROW()","v":77},70]
[{"$f":"ROW()","v":78},71]
[{"$f":"ROW()","v":79},72]
[{"$f":"ROW()","v":80},73]
[{"$f":"ROW()","v":81},74]
[{"$f":"ROW()","v":82},75]
[{"$f":"ROW()","v":83},76]
[{"$f":"ROW()","v":84},77]
[{"$f":"ROW()","v":85},78]
[{"$f":"ROW()","v":86},79]
[{"$f":"ROW()","v":87},80]
[{"$f":"ROW()","v":88},81]
[{"$f":"ROW()","v":89},82]
[{"$f":"ROW()","v":90},83]
[{"$f":"ROW()","v":91},84]
[{"$f":"ROW()","v":92},85]
[{"$f":"ROW()","v":93},86]
[{"$f":"ROW()","v":94},87]
[{"$f":"ROW()","v":95},88]
[{"$f":"ROW()","v":96},89]
[{"$f":"ROW()","v":97},90]
[{"$f":"ROW()","v":98},91]
[{"$f":"ROW()","v":99},92]
[{"$f":"ROW()","v":100},93]
[{"$f":"ROW()","v":101},94]
[{"$f":"ROW()","v":102},95]
[{"$f":"ROW()","v":103},96]
[{"$f":"ROW()","v":104},97]
[{"$f":"ROW()","v":105},98]
[{"$f":"ROW()","v":106},99]
[{"$f":"ROW()","v":107},100]
[{"$f":"ROW()","v":108},101]
[{"$f":"ROW()","v":109},102]
[{"$f":"ROW()","v":110},103]
[{"$f":"ROW()","v":111},104]
[{"$f":"ROW()","v":112},105]
[{"$f":"ROW()","v":113},106]
[{"$f":"ROW()","v":114},107]
[{"$f":"ROW()","v":115},108]
[{"$f":"ROW()","v":116},109]
[{"$f":"ROW()","v":117},110]
[{"$f":"ROW()","v":118},111]
[{"$f":"ROW()","v":119},112]
[{"$f":"ROW()","v":120},113]
[{"$f":"ROW()","v":121},114]
[{"$f":"ROW()","v":122},115]
[{"$f":"ROW()","v":123},116]
[{"$f":"ROW()","v":124},117]
[{"$f":"ROW()","v":125},118]
[{"$f":"ROW()","v":126},119]
[{"$f":"ROW()","v":127},120]
[{"$f":"ROW()","v":128},121]
[{"$f":"ROW()","v":129},122]
[{"$f":"ROW()","v":130},123]
[{"$f":"ROW()","v":131},124]
[{"$f":"ROW()","v":132},125]
[{"$f":"ROW()","v":133},126]
[{"$f":"ROW()","v":134},127]
[{"$f":"ROW()","v":135},128]
[{"$f":"ROW()","v":136},129]
[{"$f":"ROW()","v":137},130]
[{"$f":"ROW()","v":138},131]
[{"$f":"ROW()","v":139},132]
[{"$f":"ROW()","v":140},133]
[{"$f":"ROW()","v":141},134]
[{"$f":"ROW()","v":142},135]
[{"$f":"ROW()","v":143},136]
[{"$f":"ROW()","v":144},137]
[{"$f":"ROW()","v":145},138]
[{"$f":"ROW()","v":146},139]
[{"$f":"ROW()","v":147},140]
[{"$f":"ROW()","v":148},141]
[{"$f":"ROW()","v":149},142]
[{"$f":"ROW()","v":150},143]
[{"$f":"ROW()","v":151},144]
[{"$f":"ROW()","v":152},145]
[{"$f":"ROW()","v":153},146]
[{"$f":"ROW()","v":154},147]
[{"$f":"ROW()","v":155},148]
[{"$f":"ROW()","v":156},149]
[{"$f":"ROW()","v":157},150]
[{"$f":"ROW()","v":158},151]
[{"$f":"ROW()","v":159},152]
[{"$f":"ROW()","v":160},153]
[{"$f":"ROW()","v":161},154]
[{"$f":"ROW()","v":162},155]
[{"$f":"ROW()","v":163},156]
[{"$f":"ROW()","v":164},157]
[{"$f":"ROW()","v":165},158]
[{"$f":"ROW()","v":166},159]
[{"$f":"ROW()","v":167},160]
[{"$f":"ROW()","v":168},161]
[{"$f":"ROW()","v":169},162]
[{"$f":"ROW()","v":170},163]
[{"$f":"ROW()","v":171},164]
[{"$f":"ROW()","v":172},165]
[{"$f":"ROW()","v":173},166]
[{"$f":"ROW()","v":174},167]
[{"$f":"ROW()","v":175},168]
[{"$f":"ROW()","v":176},169]
[{"$f":"ROW()","v":177},170]
[{"$f":"ROW()","v":178},171]
[{"$f":"ROW()","v":179},172]
[{"$f":"ROW()","v":180},173]
[{"$f":"ROW()","v":181},174]
[{"$f":"ROW()","v":182},175]
[{"$f":"ROW()","v":183},176]
[{"$f":"ROW()","v":184},177]
[{"$f":"ROW()","v":185},178]
[{"$f":"ROW()","v":186},179]
[{"$f":"ROW()","v":187},180]
[{"$f":"ROW()","v":188},181]
[{"$f":"ROW()","v":189},182]
[{"$f":"ROW()","v":190},183]
[{"$f":"ROW()","v":191},184]
[{"$f":"ROW()","v":192},185]
[{"$f":"ROW()","v":193},186]
[{"$f":"ROW()","v":194},187]
[{"$f":"ROW()","v":195},188]
[{"$f":"ROW()","v":196},189]
[{"$f":"ROW()","v":197},190]
[{"$f":"ROW()","v":198},191]
[{"$f":"ROW()","v":199},192]
[{"$f":"ROW()","v":200},193]
[{"$f":"ROW()","v":201},194]
[{"$f":"ROW()","v":202},195]
[{"$f":"ROW()","v":203},196]
[{"$f":"ROW()","v":204},197]
[{"$f":"ROW()","v":205},198]
[{"$f":"ROW()","v":206},199]
[{"$f":"ROW()","v":207},200]
[{"$f":"ROW()","v":208},201]
[{"$f":"ROW()","v":209},202]
[{"$f":"ROW()","v":210},203]
[{"$f":"ROW()","v":211},204]
[{"$f":"ROW()","v":212},205]
[{"$f":"ROW()","v":213},206]
[{"$f":"ROW()","v":214},207]
[{"$f":"ROW()","v":215},208]
[{"$f":"ROW()","v":216},209]
[{"$f":"ROW()","v":217},210]
[{"$f":"ROW()","v":218},211]
[{"$f":"ROW()","v":219},212]
[{"$f":"ROW()","v":220},213]
[{"$f":"ROW()","v":221},214]
[{"$f":"ROW()","v":222},215]
[{"$f":"ROW()","v":223},216]
[{"$f":"ROW()","v":224},217]
[{"$f":"ROW()","v":225},218]
[{"$f":"ROW()","v":226},219]
[{"$f":"ROW()","v":227},220]
[{"$f":"ROW()","v":228},221]
[{"$f":"ROW()","v":229},222]
[{"$f":"ROW()","v":230},223]
[{"$f":"ROW()","v":231},224]
[{"$f":"ROW()","v":232},225]
[{"$f":"ROW()","v":233},226]
[{"$f":"ROW()","v":234},227]
[{"$f":"ROW()","v":235},228]
[{"$f":"ROW()","v":236},229]
[{"$f":"ROW()","v":237},230]
[{"$f":"ROW()","v":238},231]
[{"$f":"ROW()","v":239},232]
[{"$f":"ROW()","v":240},233]
[{"$f":"ROW()","v":241},234]
[{"$f":"ROW()","v":242},235]
[{"$f":"ROW()","v":243},236]
[{"$f":"ROW()","v":244},237]
[{"$f":"ROW()","v":245},238]
[{"$f":"ROW()","v":246},239]
[{"$f":"ROW()","v":247},240]
[{"$f":"ROW()","v":248},241]
[{"$f":"ROW()","v":249},242]
[{"$f":"ROW()","v":250},243]
[{"$f":"ROW()","v":251},244]
[{"$f":"ROW()","v":252},245]
[{"$f":"ROW()","v":253},246]
[{"$f":"ROW()","v":254},247]
[{"$f":"ROW()","v":255},248]
[{"$f":"ROW()","v":256},249]
[{"$f":"ROW()","v":257},250]
[{"$f":"ROW()","v":258},251]
[{"$f":"ROW()","v":259},252]
[{"$f":"ROW()","v":260},253]
[{"$f":"ROW()","v":261},254]
[{"$f":"ROW()","v":262},255]
[{"$f":"ROW()","v":263},256]
[{"$f":"ROW()","v":264},257]
[{"$f":"ROW()","v":265},258]
[{"$f":"ROW()","v":266},259]
[{"$f":"ROW()","v":267},260]
[{"$f":"ROW()","v":268},261]
[{"$f":"ROW()","v":269},262]
[{"$f":"ROW()","v":270},263]
[{"$f":"ROW()","v":271},264]
[{"$f":"ROW()","v":272},265]
[{"$f":"ROW()","v":273},266]
[{"$f":"ROW()","v":274},267]
[{"$f":"ROW()","v":275},268]
[{"$f":"ROW()","v":276},269]
[{"$f":"ROW()","v":277},270]
[{"$f":"ROW()","v":278},271]
[{"$f":"ROW()","v":279},272]
[{"$f":"ROW()","v":280},273]
[{"$f":"ROW()","v":281},274]
[{"$f":"ROW()","v":282},275]
[{"$f":"ROW()","v":283},276]
[{"$f":"ROW()","v":284},277]
[{"$f":"ROW()","v":285},278]
[{"$f":"ROW()","v":286},279]
[{"$f":"ROW()","v":287},280]
[{"$f":"ROW()","v":288},281]
[{"$f":"ROW()","v":289},282]
[{"$f":"ROW()","v":290},283]
[{"$f":"ROW()","v":291},284]
[{"$f":"ROW()","v":292},285]
[{"$f":"ROW()","v":293},286]
[{"$f":"ROW()","v":294},287]
[{"$f":"ROW()","v":295},288]
[{"$f":"ROW()","v":296},289]
[{"$f":"ROW()","v":297},290]
[{"$f":"ROW()","v":298},291]
[{"$f":"ROW()","v":299},292]
[{"$f":"ROW()","v":300},293]
[{"$f":"ROW()","v":301},294]
[{"$f":"ROW()","v":302},295]
[{"$f":"ROW()","v":303},296]
[{"$f":"ROW()","v":304},297]
[{"$f":"ROW()","v":305},298]
[{"$f":"ROW()","v":306},299]
[{"$f":"ROW()","v":307},300]
[{"$f":"ROW()","v":308},301]
[{"$f":"ROW()","v":309},302]
[{"$f":"ROW()","v":310},303]
[{"$f":"ROW()","v":311},304]
[{"$f":"ROW()","v":312},305]
[{"$f":"ROW()","v":313},306]
[{"$f":"ROW()","v":314},307]
[{"$f":"ROW()","v":315},308]
[{"$f":"ROW()","v":316},309]
[{"$f":"ROW()","v":317},310]
[{"$f":"ROW()","v":318},311]
[{"$f":"ROW()","v":319},312]
[{"$f":"ROW()","v":320},313]
[{"$f":"ROW()","v":321},314]
[{"$f":"ROW()","v":322},315]
[{"$f":"ROW()","v":323},316]
[{"$f":"ROW()","v":324},317]
[{"$f":"ROW()","v":325},318]
[{"$f":"ROW()","v":326},319]
[{"$f":"ROW()","v":327},320]
[{"$f":"ROW()","v":328},321]
[{"$f":"ROW()","v":329},322]
[{"$f":"ROW()","v":330},323]
[{"$f":"ROW()","v":331},324]
[{"$f":"ROW()","v":332},325]
[{"$f":"ROW()","v":333},326]
[{"$f":"ROW()","v":334},327]
[{"$f":"ROW()","v":335},328]
[{"$f":"ROW()","v":336},329]
[{"$f":"ROW()","v":337},330]
[{"$f":"ROW()","v":338},331]
[{"$f":"ROW()","v":339},332]
[{"$f":"ROW()","v":340},333]
[{"$f":"ROW()","v":341},334]
[{"$f":"ROW()","v":342},335]
[{"$f":"ROW()","v":343},336]
[{"$f":"ROW()","v":344},337]
[{"$f":"ROW()","v":345},338]
[{"$f":"ROW()","v":346},339]
[{"$f":"ROW()","v":347},340]
[{"$f":"ROW()","v":348},341]
[{"$f":"ROW()","v":349},342]
[{"$f":"ROW()","v":350},343]
[{"$f":"ROW()","v":351},344]
[{"$f":"ROW()","v":352},345]
[{"$f":"ROW()","v":353},346]
[{"$f":"ROW()","v":354},347]
[{"$f":"ROW()","v":355},348]
[{"$f":"ROW()","v":356},349]
[{"$f":"ROW()","v":357},350]
[{"$f":"ROW()","v":358},351]
[{"$f":"ROW()","v":359},352]
[{"$f":"ROW()","v":360},353]
[{"$f":"ROW()","v":361},354]
[{"$f":"ROW()","v":362},355]
[{"$f":"ROW()","v":363},356]
[{"$f":"ROW()","v":364},357]
[{"$f":"ROW()","v":365},358]
[{"$f":"ROW()","v":366},359]
[{"$f":"ROW()","v":367},360]
[{"$f":"ROW()","v":368},361]
[{"$f":"ROW()","v":369},362]
[{"$f":"ROW()","v":370},363]
[{"$f":"ROW()","v":371},364]
[{"$f":"ROW()","v":372},365]
[{"$f":"ROW()","v":373},366]
[{"$f":"ROW()","v":374},367]
[{"$f":"ROW()","v":375},368]
[{"$f":"ROW()","v":376},369]
[{"$f":"ROW()","v":377},370]
[{"$f":"ROW()","v":378},371]
[{"$f":"ROW()","v":379},372]
[{"$f":"ROW()","v":380},373]
[{"$f":"ROW()","v":381},374]
[{"$f":"ROW()","v":382},375]
[{"$f":"ROW()","v":383},376]
[{"$f":"ROW()","v":384},377]
[{"$f":"ROW()","v":385},378]
[{"$f":"ROW()","v":386},379]
[{"$f":"ROW()","v":387},380]
[{"$f":"ROW()","v":388},381]
[{"$f":"ROW()","v":389},382]
[{"$f":"ROW()","v":390},383]
[{"$f":"ROW()","v":391},384]
[{"$f":"ROW()","v":392},385]
[{"$f":"ROW()","v":393},386]
[{"$f":"ROW()","v":394},387]
[{"$f":"ROW()","v":395},388]
[{"$f":"ROW()","v":396},389]
[{"$f":"ROW()","v":397},390]
[{"$f":"ROW()","v":398},391]
[{"$f":"ROW()","v":399},392]
[{"$f":"ROW()","v":400},393]
[{"$f":"ROW()","v":401},394]
[{"$f":"ROW()","v":402},395]
[{"$f":"ROW()","v":403},396]
[{"$f":"ROW()","v":404},397]
[{"$f":"ROW()","v":405},398]
[{"$f":"ROW()","v":406},399]
[{"$f":"ROW()","v":407},400]
[{"$f":"ROW()","v":408},401]
[{"$f":"ROW()","v":409},402]
[{"$f":"ROW()","v":410},403]
[{"$f":"ROW()","v":411},404]
[{"$f":"ROW()","v":412},405]
[{"$f":"ROW()","v":413},406]
[{"$f":"ROW()","v":414},407]
[{"$f":"ROW()","v":415},408]
[{"$f":"ROW()","v":416},409]
[{"$f":"ROW()","v":417},410]
[{"$f":"ROW()","v":418},411]
[{"$f":"ROW()","v":419},412]
[{"$f":"ROW()","v":420},413]
[{"$f":"ROW()","v":421},414]
[{"$f":"ROW()","v":422},415]
[{"$f":"ROW()","v":423},416]
[{"$f":"ROW()","v":424},417]
[{"$f":"ROW()","v":425},418]
[{"$f":"ROW()","v":426},419]
[{"$f":"ROW()","v":427},420]
[{"$f":"ROW()","v":428},421]
[{"$f":"ROW()","v":429},422]
[{"$f":"ROW()","v":430},423]
[{"$f":"ROW()","v":431},424]
[{"$f":"ROW()","v":432},425]
[{"$f":"ROW()","v":433},426]
[{"$f":"ROW()","v":434},427]
[{"$f":"ROW()","v":435},428]
[{"$f":"ROW()","v":436},429]
[{"$f":"ROW()","v":437},430]
[{"$f":"ROW()","v":438},431]
[{"$f":"ROW()","v":439},432]
[{"$f":"ROW()","v":440},433]
[{"$f":"ROW()","v":441},434]
[{"$f":"ROW()","v":442},435]
[{"$f":"ROW()","v":443},436]
[{"$f":"ROW()","v":444},437]
[{"$f":"ROW()","v":445},438]
[{"$f":"ROW()","v":446},439]
[{"$f":"ROW()","v":447},440]
[{"$f":"ROW()","v":448},441]
[{"$f":"ROW()","v":449},442]
[{"$f":"ROW()","v":450},443]
[{"$f":"ROW()","v":451},444]
[{"$f":"ROW()","v":452},445]
[{"$f":"ROW()","v":453},446]
[{"$f":"ROW()","v":454},447]
[{"$f":"ROW()","v":455},448]
[{"$f":"ROW()","v":456},449]
[{"$f":"ROW()","v":457},450]
[{"$f":"ROW()","v":458},451]
[{"$f":"ROW()","v":459},452]
[{"$f":"ROW()","v":460},453]
[{"$f":"ROW()","v":461},454]
[{"$f":"ROW()","v":462},455]
[{"$f":"ROW()","v":463},456]
[{"$f":"ROW()","v":464},457]
[{"$f":"ROW()","v":465},458]
[{"$f":"ROW()","v":466},459]
[{"$f":"ROW()","v":467},460]
[{"$f":"ROW()","v":468},461]
[{"$f":"ROW()","v":469},462]
[{"$f":"ROW()","v":470},463]
[{"$f":"ROW()","v":471},464]
[{"$f":"ROW()","v":472},465]
[{"$f":"ROW()","v":473},466]
[{"$f":"ROW()","v":474},467]
[{"$f":"ROW()","v":475},468]
[{"$f":"ROW()","v":476},469]
[{"$f":"ROW()","v":477},470]
[{"$f":"ROW()","v":478},471]
[{"$f":"ROW()","v":479},472]
[{"$f":"ROW()","v":480},473]
[{"$f":"ROW()","v":481},474]
[{"$f":"ROW()","v":482},475]
[{"$f":"ROW()","v":483},476]
[{"$f":"ROW()","v":484},477]
[{"$f":"ROW()","v":485},478]
[{"$f":"ROW()","v":486},479]
[{"$f":"ROW()","v":487},480]
[{"$f":"ROW()","v":488},481]
[{"$f":"ROW()","v":489},482]
[{"$f":"ROW()","v":490},483]
[{"$f":"ROW()","v":491},484]
[{"$f":"ROW()","v":492},485]
[{"$f":"ROW()","v":493},486]
[{"$f":"ROW()","v":494},487]
[{"$f":"ROW()","v":495},488]
[{"$f":"ROW()","v":496},489]
[{"$f":"ROW()","v":497},490]
[{"$f":"ROW()","v":498},491]
[{"$f":"ROW()","v":499},492]
[{"$f":"ROW()","v":500},493]
[{"$f":"ROW()","v":501},494]
[{"$f":"ROW()","v":502},495]

{"sheet":"Mediation","index":4,"n_rows":502,"n_cols":39,"rows_kept":502,"cut":false,"hidden":false,"merged":[[1,9,3,22],[1,8,3,8],[3,1,3,3],[3,4,3,7]]}
[]
[null,null,null,null,null,null,null,null,"Key Instructions:","> Complete ALL white fields - Failure to do this WILL result in your submission being rejected and your payment will be at risk!\n> Enter fee scheme in first column BEFORE entering specific claim line details\n> Do NOT complete grey fields. Yellow fields are OPTIONAL - please complete only if applicable\n> For more detailed help and support please see Help Page (Or contact Online Support - Details on help page)\n> Run Data Check prior to submitting your claim! If errors are found (highlighted orange) please correct and re-run check"]
[]
[null,{"$f":"TRIM(UPPER('Front Page'!$C$8))&\" - \"&TRIM(UPPER('Front Page'!$C$9))&\" - \"&TRIM(UPPER('Front Page'!$C$10))","v":" -  - "},null,null,{"$f":"(\"© Crown Copyright \" &'Front Page'!$E$18 & \" - \" &'Front Page'!$D$18)","v":"© Crown Copyright OCTOBER 2025 - v1.37"}]
[null,null,null,null,{"$f":"TRIM(UPPER('Front Page'!$C$8))","v":""},{"$f":"TRIM(UPPER('Front Page'!$C$9))","v":""},{"$f":"TRIM(UPPER('Front Page'!$C$10))","v":""},{"$f":"TRIM(UPPER('Front Page'!$C$13))","v":""}]
[null,"Line Number","Matter Type 1","Matter Type 2","Fee Code","Case Reference Number","Case Start Date","Claim ID","Unique Case ID","Case Concluded Date","Client 1 Forename","Client 1 Surname","Client 1 Date of Birth","Client 1 UCN","Client 1 Postcode","Client 1 Gender","Client 1 Ethnicity","Client 1 Disability","Client 1 Legally Aided?","Client 2 Forename","Client 2 Surname","Client 2 Date of Birth","Client 2 UCN","Client 2 Postcode","Client 2 Gender","Client 2 Ethnicity","Client 2 Disability","Client 2 Legally Aided?","Number of Mediation Sessions","Mediation Time (mins)","Outcome","Outreach Location","Referral","VAT Indicator","Net Disbursement Amount (Excluding VAT)","Disbursements VAT amount","Client 1 Postal Application accepted ","Client 2 Postal Application accepted","Schedule Reference (Outcome)"]
[null,"account=","matterType=",":","FEE_CODE=","CASE_REF_NUMBER=","CASE_START_DATE=","CASE_ID=","UNIQUE_CASE_ID=","MED_CONCLUDED_DATE=","CLIENT_FORENAME=","CLIENT_SURNAME=","CLIENT_DATE_OF_BIRTH=","UCN=","CLIENT_POST_CODE=","GENDER=","ETHNICITY=","DISABILITY=","CLIENT_LEGALLY_AIDED=","CLIENT2_FORENAME=","CLIENT2_SURNAME=","CLIENT2_DATE_OF_BIRTH=","CLIENT2_UCN=","CLIENT2_POST_CODE=","CLIENT2_GENDER=","CLIENT2_ETHNICITY=","CLIENT2_DISABILITY=","CLIENT2_LEGALLY_AIDED=","NUMBER_OF_MEDIATION_SESSIONS=","MEDIATION_TIME=","OUTCOME_CODE=","OUTREACH=","REFERRAL=","VAT_INDICATOR=","DISBURSEMENTS_AMOUNT=","DISBURSEMENTS_VAT=","POSTAL_APPL_ACCP=","CLIENT2_POSTAL_APPL_ACCP=","SCHEDULE_REF="]
[null,1,null,null,null,null,null,null,null,null,null,null,null,{"$f":"IF(C8=\"VOID\",\"\",(TEXT(M8,\"DD\")&TEXT(M8,\"MM\")&TEXT(M8,\"YYYY\")&\"/\"&UPPER(LEFT(K8,1))&\"/\"&UPPER(LEFT(L8,4))))","v":"00011900//"},null,null,null,null,null,null,null,null,{"$f":"IF(T8=\"\",\"\",IF(C8=\"VOID\",\"\",(TEXT(V8,\"DD\")&TEXT(V8,\"MM\")&TEXT(V8,\"YYYY\")&\"/\"&UPPER(LEFT(T8,1))&\"/\"&UPPER(LEFT(U8,4)))))","v":""}]
[null,2,null,null,null,null,null,null,null,null,null,null,null,"00011900//",null,null,null,null,null,null,null,null,""]
[null,3,null,null,null,null,null,null,null,null,null,null,null,"00011900//",null,null,null,null,null,null,null,null,""]
[null,4,null,null,null,null,null,null,null,null,null,null,null,"00011900//",null,null,null,null,null,null,null,null,""]
[null,5,null,null,null,null,null,null,null,null,null,null,null,"00011900//",null,null,null,null,null,null,null,null,""]
[null,6,null,null,null,null,null,null,null,null,null,null,null,"00011900//",null,null,null,null,null,null,null,null,""]
[null,7,null,null,null,null,null,null,null,null,null,null,null,"00011900//",null,null,null,null,null,null,null,null,""]
[null,8,null,null,null,null,null,null,null,null,null,null,null,"00011900//",null,null,null,null,null,null,null,null,""]
[null,9,null,null,null,null,null,null,null,null,null,null,null,"00011900//",null,null,null,null,null,null,null,null,""]
[null,10,null,null,null,null,null,null,null,null,null,null,null,"00011900//",null,null,null,null,null,null,null,null,""]
[null,11,null,null,null,null,null,null,null,null,null,null,null,"00011900//",null,null,null,null,null,null,null,null,""]
[null,12,null,null,null,null,null,null,null,null,null,null,null,"00011900//",null,null,null,null,null,null,null,null,""]
[null,13,null,null,null,null,null,null,null,null,null,null,null,"00011900//",null,null,null,null,null,null,null,null,""]
[null,14,null,null,null,null,null,null,null,null,null,null,null,"00011900//",null,null,null,null,null,null,null,null,""]
[null,15,null,null,null,null,null,null,null,null,null,null,null,"00011900//",null,null,null,null,null,null,null,null,""]
[null,16,null,null,null,null,null,null,null,null,null,null,null,"00011900//",null,null,null,null,null,null,null,null,""]
[null,17,null,null,null,null,null,null,null,null,null,null,null,"00011900//",null,null,null,null,null,null,null,null,""]
[null,18,null,null,null,null,null,null,null,null,null,null,null,"00011900//",null,null,null,null,null,null,null,null,""]
[null,19,null,null,null,null,null,null,null,null,null,null,null,"00011900//",null,null,null,null,null,null,null,null,""]
[null,20,null,null,null,null,null,null,null,null,null,null,null,"00011900//",null,null,null,null,null,null,null,null,""]
[null,21,null,null,null,null,null,null,null,null,null,null,null,"00011900//",null,null,null,null,null,null,null,null,""]
[null,22,null,null,null,null,null,null,null,null,null,null,null,"00011900//",null,null,null,null,null,null,null,null,""]
[null,23,null,null,null,null,null,null,null,null,null,null,null,"00011900//",null,null,null,null,null,null,null,null,""]
[null,24,null,null,null,null,null,null,null,null,null,null,null,"00011900//",null,null,null,null,null,null,null,null,""]
[null,25,null,null,null,null,null,null,null,null,null,null,null,"00011900//",null,null,null,null,null,null,null,null,""]
[null,26,null,null,null,null,null,null,null,null,null,null,null,"00011900//",null,null,null,null,null,null,null,null,""]
[null,27,null,null,null,null,null,null,null,null,null,null,null,"00011900//",null,null,null,null,null,null,null,null,""]
[null,28,null,null,null,null,null,null,null,null,null,null,null,"00011900//",null,null,null,null,null,null,null,null,""]
[null,29,null,null,null,null,null,null,null,null,null,null,null,"00011900//",null,null,null,null,null,null,null,null,""]
[null,30,null,null,null,null,null,null,null,null,null,null,null,"00011900//",null,null,null,null,null,null,null,null,""]
[null,31,null,null,null,null,null,null,null,null,null,null,null,"00011900//",null,null,null,null,null,null,null,null,""]
[null,32,null,null,null,null,null,null,null,null,null,null,null,"00011900//",null,null,null,null,null,null,null,null,""]
[null,33,null,null,null,null,null,null,null,null,null,null,null,"00011900//",null,null,null,null,null,null,null,null,""]
[null,34,null,null,null,null,null,null,null,null,null,null,null,"00011900//",null,null,null,null,null,null,null,null,""]
[null,35,null,null,null,null,null,null,null,null,null,null,null,"00011900//",null,null,null,null,null,null,null,null,""]
[null,36,null,null,null,null,null,null,null,null,null,null,null,"00011900//",null,null,null,null,null,null,null,null,""]
[null,37,null,null,null,null,null,null,null,null,null,null,null,"00011900//",null,null,null,null,null,null,null,null,""]
[null,38,null,null,null,null,null,null,null,null,null,null,null,"00011900//",null,null,null,null,null,null,null,null,""]
[null,39,null,null,null,null,null,null,null,null,null,null,null,"00011900//",null,null,null,null,null,null,null,null,""]
[null,40,null,null,null,null,null,null,null,null,null,null,null,"00011900//",null,null,null,null,null,null,null,null,""]
[null,41,null,null,null,null,null,null,null,null,null,null,null,"00011900//",null,null,null,null,null,null,null,null,""]
[null,42,null,null,null,null,null,null,null,null,null,null,null,"00011900//",null,null,null,null,null,null,null,null,""]
[null,43,null,null,null,null,null,null,null,null,null,null,null,"00011900//",null,null,null,null,null,null,null,null,""]
[null,44,null,null,null,null,null,null,null,null,null,null,null,"00011900//",null,null,null,null,null,null,null,null,""]
[null,45,null,null,null,null,null,null,null,null,null,null,null,"00011900//",null,null,null,null,null,null,null,null,""]
[null,46,null,null,null,null,null,null,null,null,null,null,null,"00011900//",null,null,null,null,null,null,null,null,""]
[null,47,null,null,null,null,null,null,null,null,null,null,null,"00011900//",null,null,null,null,null,null,null,null,""]
[null,48,null,null,null,null,null,null,null,null,null,null,null,"00011900//",null,null,null,null,null,null,null,null,""]
[null,49,null,null,null,null,null,null,null,null,null,null,null,"00011900//",null,null,null,null,null,null,null,null,""]
[null,50,null,null,null,null,null,null,null,null,null,null,null,"00011900//",null,null,null,null,null,null,null,null,""]
[null,51,null,null,null,null,null,null,null,null,null,null,null,"00011900//",null,null,null,null,null,null,null,null,""]
[null,52,null,null,null,null,null,null,null,null,null,null,null,"00011900//",null,null,null,null,null,null,null,null,""]
[null,53,null,null,null,null,null,null,null,null,null,null,null,"00011900//",null,null,null,null,null,null,null,null,""]
[null,54,null,null,null,null,null,null,null,null,null,null,null,"00011900//",null,null,null,null,null,null,null,null,""]
[null,55,null,null,null,null,null,null,null,null,null,null,null,"00011900//",null,null,null,null,null,null,null,null,""]
[null,56,null,null,null,null,null,null,null,null,null,null,null,"00011900//",null,null,null,null,null,null,null,null,""]
[null,57,null,null,null,null,null,null,null,null,null,null,null,"00011900//",null,null,null,null,null,null,null,null,""]
[null,58,null,null,null,null,null,null,null,null,null,null,null,"00011900//",null,null,null,null,null,null,null,null,""]
[null,59,null,null,null,null,null,null,null,null,null,null,null,"00011900//",null,null,null,null,null,null,null,null,""]
[null,60,null,null,null,null,null,null,null,null,null,null,null,"00011900//",null,null,null,null,null,null,null,null,""]
[null,61,null,null,null,null,null,null,null,null,null,null,null,"00011900//",null,null,null,null,null,null,null,null,""]
[null,62,null,null,null,null,null,null,null,null,null,null,null,"00011900//",null,null,null,null,null,null,null,null,""]
[null,63,null,null,null,null,null,null,null,null,null,null,null,"00011900//",null,null,null,null,null,null,null,null,""]
[null,64,null,null,null,null,null,null,null,null,null,null,null,"00011900//",null,null,null,null,null,null,null,null,""]
[null,65,null,null,null,null,null,null,null,null,null,null,null,{"$f":"IF(C72=\"VOID\",\"\",(TEXT(M72,\"DD\")&TEXT(M72,\"MM\")&TEXT(M72,\"YYYY\")&\"/\"&UPPER(LEFT(K72,1))&\"/\"&UPPER(LEFT(L72,4))))","v":"00011900//"},null,null,null,null,null,null,null,null,{"$f":"IF(T72=\"\",\"\",IF(C72=\"VOID\",\"\",(TEXT(V72,\"DD\")&TEXT(V72,\"MM\")&TEXT(V72,\"YYYY\")&\"/\"&UPPER(LEFT(T72,1))&\"/\"&UPPER(LEFT(U72,4)))))","v":""}]
[null,66,null,null,null,null,null,null,null,null,null,null,null,"00011900//",null,null,null,null,null,null,null,null,""]
[null,67,null,null,null,null,null,null,null,null,null,null,null,"00011900//",null,null,null,null,null,null,null,null,""]
[null,68,null,null,null,null,null,null,null,null,null,null,null,"00011900//",null,null,null,null,null,null,null,null,""]
[null,69,null,null,null,null,null,null,null,null,null,null,null,"00011900//",null,null,null,null,null,null,null,null,""]
[null,70,null,null,null,null,null,null,null,null,null,null,null,"00011900//",null,null,null,null,null,null,null,null,""]
[null,71,null,null,null,null,null,null,null,null,null,null,null,"00011900//",null,null,null,null,null,null,null,null,""]
[null,72,null,null,null,null,null,null,null,null,null,null,null,"00011900//",null,null,null,null,null,null,null,null,""]
[null,73,null,null,null,null,null,null,null,null,null,null,null,"00011900//",null,null,null,null,null,null,null,null,""]
[null,74,null,null,null,null,null,null,null,null,null,null,null,"00011900//",null,null,null,null,null,null,null,null,""]
[null,75,null,null,null,null,null,null,null,null,null,null,null,"00011900//",null,null,null,null,null,null,null,null,""]
[null,76,null,null,null,null,null,null,null,null,null,null,null,"00011900//",null,null,null,null,null,null,null,null,""]
[null,77,null,null,null,null,null,null,null,null,null,null,null,"00011900//",null,null,null,null,null,null,null,null,""]
[null,78,null,null,null,null,null,null,null,null,null,null,null,"00011900//",null,null,null,null,null,null,null,null,""]
[null,79,null,null,null,null,null,null,null,null,null,null,null,"00011900//",null,null,null,null,null,null,null,null,""]
[null,80,null,null,null,null,null,null,null,null,null,null,null,"00011900//",null,null,null,null,null,null,null,null,""]
[null,81,null,null,null,null,null,null,null,null,null,null,null,"00011900//",null,null,null,null,null,null,null,null,""]
[null,82,null,null,null,null,null,null,null,null,null,null,null,"00011900//",null,null,null,null,null,null,null,null,""]
[null,83,null,null,null,null,null,null,null,null,null,null,null,"00011900//",null,null,null,null,null,null,null,null,""]
[null,84,null,null,null,null,null,null,null,null,null,null,null,"00011900//",null,null,null,null,null,null,null,null,""]
[null,85,null,null,null,null,null,null,null,null,null,null,null,"00011900//",null,null,null,null,null,null,null,null,""]
[null,86,null,null,null,null,null,null,null,null,null,null,null,"00011900//",null,null,null,null,null,null,null,null,""]
[null,87,null,null,null,null,null,null,null,null,null,null,null,"00011900//",null,null,null,null,null,null,null,null,""]
[null,88,null,null,null,null,null,null,null,null,null,null,null,"00011900//",null,null,null,null,null,null,null,null,""]
[null,89,null,null,null,null,null,null,null,null,null,null,null,"00011900//",null,null,null,null,null,null,null,null,""]
[null,90,null,null,null,null,null,null,null,null,null,null,null,"00011900//",null,null,null,null,null,null,null,null,""]
[null,91,null,null,null,null,null,null,null,null,null,null,null,"00011900//",null,null,null,null,null,null,null,null,""]
[null,92,null,null,null,null,null,null,null,null,null,null,null,"00011900//",null,null,null,null,null,null,null,null,""]
[null,93,null,null,null,null,null,null,null,null,null,null,null,"00011900//",null,null,null,null,null,null,null,null,""]
[null,94,null,null,null,null,null,null,null,null,null,null,null,"00011900//",null,null,null,null,null,null,null,null,""]
[null,95,null,null,null,null,null,null,null,null,null,null,null,"00011900//",null,null,null,null,null,null,null,null,""]
[null,96,null,null,null,null,null,null,null,null,null,null,null,"00011900//",null,null,null,null,null,null,null,null,""]
[null,97,null,null,null,null,null,null,null,null,null,null,null,"00011900//",null,null,null,null,null,null,null,null,""]
[null,98,null,null,null,null,null,null,null,null,null,null,null,"00011900//",null,null,null,null,null,null,null,null,""]
[null,99,null,null,null,null,null,null,null,null,null,null,null,"00011900//",null,null,null,null,null,null,null,null,""]
[null,100,null,null,null,null,null,null,null,null,null,null,null,"00011900//",null,null,null,null,null,null,null,null,""]
[null,101,null,null,null,null,null,null,null,null,null,null,null,"00011900//",null,null,null,null,null,null,null,null,""]
[null,102,null,null,null,null,null,null,null,null,null,null,null,"00011900//",null,null,null,null,null,null,null,null,""]
[null,103,null,null,null,null,null,null,null,null,null,null,null,"00011900//",null,null,null,null,null,null,null,null,""]
[null,104,null,null,null,null,null,null,null,null,null,null,null,"00011900//",null,null,null,null,null,null,null,null,""]
[null,105,null,null,null,null,null,null,null,null,null,null,null,"00011900//",null,null,null,null,null,null,null,null,""]
[null,106,null,null,null,null,null,null,null,null,null,null,null,"00011900//",null,null,null,null,null,null,null,null,""]
[null,107,null,null,null,null,null,null,null,null,null,null,null,"00011900//",null,null,null,null,null,null,null,null,""]
[null,108,null,null,null,null,null,null,null,null,null,null,null,"00011900//",null,null,null,null,null,null,null,null,""]
[null,109,null,null,null,null,null,null,null,null,null,null,null,"00011900//",null,null,null,null,null,null,null,null,""]
[null,110,null,null,null,null,null,null,null,null,null,null,null,"00011900//",null,null,null,null,null,null,null,null,""]
[null,111,null,null,null,null,null,null,null,null,null,null,null,"00011900//",null,null,null,null,null,null,null,null,""]
[null,112,null,null,null,null,null,null,null,null,null,null,null,"00011900//",null,null,null,null,null,null,null,null,""]
[null,113,null,null,null,null,null,null,null,null,null,null,null,"00011900//",null,null,null,null,null,null,null,null,""]
[null,114,null,null,null,null,null,null,null,null,null,null,null,"00011900//",null,null,null,null,null,null,null,null,""]
[null,115,null,null,null,null,null,null,null,null,null,null,null,"00011900//",null,null,null,null,null,null,null,null,""]
[null,116,null,null,null,null,null,null,null,null,null,null,null,"00011900//",null,null,null,null,null,null,null,null,""]
[null,117,null,null,null,null,null,null,null,null,null,null,null,"00011900//",null,null,null,null,null,null,null,null,""]
[null,118,null,null,null,null,null,null,null,null,null,null,null,"00011900//",null,null,null,null,null,null,null,null,""]
[null,119,null,null,null,null,null,null,null,null,null,null,null,"00011900//",null,null,null,null,null,null,null,null,""]
[null,120,null,null,null,null,null,null,null,null,null,null,null,"00011900//",null,null,null,null,null,null,null,null,""]
[null,121,null,null,null,null,null,null,null,null,null,null,null,"00011900//",null,null,null,null,null,null,null,null,""]
[null,122,null,null,null,null,null,null,null,null,null,null,null,"00011900//",null,null,null,null,null,null,null,null,""]
[null,123,null,null,null,null,null,null,null,null,null,null,null,"00011900//",null,null,null,null,null,null,null,null,""]
[null,124,null,null,null,null,null,null,null,null,null,null,null,"00011900//",null,null,null,null,null,null,null,null,""]
[null,125,null,null,null,null,null,null,null,null,null,null,null,"00011900//",null,null,null,null,null,null,null,null,""]
[null,126,null,null,null,null,null,null,null,null,null,null,null,"00011900//",null,null,null,null,null,null,null,null,""]
[null,127,null,null,null,null,null,null,null,null,null,null,null,"00011900//",null,null,null,null,null,null,null,null,""]
[null,128,null,null,null,null,null,null,null,null,null,null,null,"00011900//",null,null,null,null,null,null,null,null,""]
[null,129,null,null,null,null,null,null,null,null,null,null,null,{"$f":"IF(C136=\"VOID\",\"\",(TEXT(M136,\"DD\")&TEXT(M136,\"MM\")&TEXT(M136,\"YYYY\")&\"/\"&UPPER(LEFT(K136,1))&\"/\"&UPPER(LEFT(L136,4))))","v":"00011900//"},null,null,null,null,null,null,null,null,{"$f":"IF(T136=\"\",\"\",IF(C136=\"VOID\",\"\",(TEXT(V136,\"DD\")&TEXT(V136,\"MM\")&TEXT(V136,\"YYYY\")&\"/\"&UPPER(LEFT(T136,1))&\"/\"&UPPER(LEFT(U136,4)))))","v":""}]
[null,130,null,null,null,null,null,null,null,null,null,null,null,"00011900//",null,null,null,null,null,null,null,null,""]
[null,131,null,null,null,null,null,null,null,null,null,null,null,"00011900//",null,null,null,null,null,null,null,null,""]
[null,132,null,null,null,null,null,null,null,null,null,null,null,"00011900//",null,null,null,null,null,null,null,null,""]
[null,133,null,null,null,null,null,null,null,null,null,null,null,"00011900//",null,null,null,null,null,null,null,null,""]
[null,134,null,null,null,null,null,null,null,null,null,null,null,"00011900//",null,null,null,null,null,null,null,null,""]
[null,135,null,null,null,null,null,null,null,null,null,null,null,"00011900//",null,null,null,null,null,null,null,null,""]
[null,136,null,null,null,null,null,null,null,null,null,null,null,"00011900//",null,null,null,null,null,null,null,null,""]
[null,137,null,null,null,null,null,null,null,null,null,null,null,"00011900//",null,null,null,null,null,null,null,null,""]
[null,138,null,null,null,null,null,null,null,null,null,null,null,"00011900//",null,null,null,null,null,null,null,null,""]
[null,139,null,null,null,null,null,null,null,null,null,null,null,"00011900//",null,null,null,null,null,null,null,null,""]
[null,140,null,null,null,null,null,null,null,null,null,null,null,"00011900//",null,null,null,null,null,null,null,null,""]
[null,141,null,null,null,null,null,null,null,null,null,null,null,"00011900//",null,null,null,null,null,null,null,null,""]
[null,142,null,null,null,null,null,null,null,null,null,null,null,"00011900//",null,null,null,null,null,null,null,null,""]
[null,143,null,null,null,null,null,null,null,null,null,null,null,"00011900//",null,null,null,null,null,null,null,null,""]
[null,144,null,null,null,null,null,null,null,null,null,null,null,"00011900//",null,null,null,null,null,null,null,null,""]
[null,145,null,null,null,null,null,null,null,null,null,null,null,"00011900//",null,null,null,null,null,null,null,null,""]
[null,146,null,null,null,null,null,null,null,null,null,null,null,"00011900//",null,null,null,null,null,null,null,null,""]
[null,147,null,null,null,null,null,null,null,null,null,null,null,"00011900//",null,null,null,null,null,null,null,null,""]
[null,148,null,null,null,null,null,null,null,null,null,null,null,"00011900//",null,null,null,null,null,null,null,null,""]
[null,149,null,null,null,null,null,null,null,null,null,null,null,"00011900//",null,null,null,null,null,null,null,null,""]
[null,150,null,null,null,null,null,null,null,null,null,null,null,"00011900//",null,null,null,null,null,null,null,null,""]
[null,151,null,null,null,null,null,null,null,null,null,null,null,"00011900//",null,null,null,null,null,null,null,null,""]
[null,152,null,null,null,null,null,null,null,null,null,null,null,"00011900//",null,null,null,null,null,null,null,null,""]
[null,153,null,null,null,null,null,null,null,null,null,null,null,"00011900//",null,null,null,null,null,null,null,null,""]
[null,154,null,null,null,null,null,null,null,null,null,null,null,"00011900//",null,null,null,null,null,null,null,null,""]
[null,155,null,null,null,null,null,null,null,null,null,null,null,"00011900//",null,null,null,null,null,null,null,null,""]
[null,156,null,null,null,null,null,null,null,null,null,null,null,"00011900//",null,null,null,null,null,null,null,null,""]
[null,157,null,null,null,null,null,null,null,null,null,null,null,"00011900//",null,null,null,null,null,null,null,null,""]
[null,158,null,null,null,null,null,null,null,null,null,null,null,"00011900//",null,null,null,null,null,null,null,null,""]
[null,159,null,null,null,null,null,null,null,null,null,null,null,"00011900//",null,null,null,null,null,null,null,null,""]
[null,160,null,null,null,null,null,null,null,null,null,null,null,"00011900//",null,null,null,null,null,null,null,null,""]
[null,161,null,null,null,null,null,null,null,null,null,null,null,"00011900//",null,null,null,null,null,null,null,null,""]
[null,162,null,null,null,null,null,null,null,null,null,null,null,"00011900//",null,null,null,null,null,null,null,null,""]
[null,163,null,null,null,null,null,null,null,null,null,null,null,"00011900//",null,null,null,null,null,null,null,null,""]
[null,164,null,null,null,null,null,null,null,null,null,null,null,"00011900//",null,null,null,null,null,null,null,null,""]
[null,165,null,null,null,null,null,null,null,null,null,null,null,"00011900//",null,null,null,null,null,null,null,null,""]
[null,166,null,null,null,null,null,null,null,null,null,null,null,"00011900//",null,null,null,null,null,null,null,null,""]
[null,167,null,null,null,null,null,null,null,null,null,null,null,"00011900//",null,null,null,null,null,null,null,null,""]
[null,168,null,null,null,null,null,null,null,null,null,null,null,"00011900//",null,null,null,null,null,null,null,null,""]
[null,169,null,null,null,null,null,null,null,null,null,null,null,"00011900//",null,null,null,null,null,null,null,null,""]
[null,170,null,null,null,null,null,null,null,null,null,null,null,"00011900//",null,null,null,null,null,null,null,null,""]
[null,171,null,null,null,null,null,null,null,null,null,null,null,"00011900//",null,null,null,null,null,null,null,null,""]
[null,172,null,null,null,null,null,null,null,null,null,null,null,"00011900//",null,null,null,null,null,null,null,null,""]
[null,173,null,null,null,null,null,null,null,null,null,null,null,"00011900//",null,null,null,null,null,null,null,null,""]
[null,174,null,null,null,null,null,null,null,null,null,null,null,"00011900//",null,null,null,null,null,null,null,null,""]
[null,175,null,null,null,null,null,null,null,null,null,null,null,"00011900//",null,null,null,null,null,null,null,null,""]
[null,176,null,null,null,null,null,null,null,null,null,null,null,"00011900//",null,null,null,null,null,null,null,null,""]
[null,177,null,null,null,null,null,null,null,null,null,null,null,"00011900//",null,null,null,null,null,null,null,null,""]
[null,178,null,null,null,null,null,null,null,null,null,null,null,"00011900//",null,null,null,null,null,null,null,null,""]
[null,179,null,null,null,null,null,null,null,null,null,null,null,"00011900//",null,null,null,null,null,null,null,null,""]
[null,180,null,null,null,null,null,null,null,null,null,null,null,"00011900//",null,null,null,null,null,null,null,null,""]
[null,181,null,null,null,null,null,null,null,null,null,null,null,"00011900//",null,null,null,null,null,null,null,null,""]
[null,182,null,null,null,null,null,null,null,null,null,null,null,"00011900//",null,null,null,null,null,null,null,null,""]
[null,183,null,null,null,null,null,null,null,null,null,null,null,"00011900//",null,null,null,null,null,null,null,null,""]
[null,184,null,null,null,null,null,null,null,null,null,null,null,"00011900//",null,null,null,null,null,null,null,null,""]
[null,185,null,null,null,null,null,null,null,null,null,null,null,"00011900//",null,null,null,null,null,null,null,null,""]
[null,186,null,null,null,null,null,null,null,null,null,null,null,"00011900//",null,null,null,null,null,null,null,null,""]
[null,187,null,null,null,null,null,null,null,null,null,null,null,"00011900//",null,null,null,null,null,null,null,null,""]
[null,188,null,null,null,null,null,null,null,null,null,null,null,"00011900//",null,null,null,null,null,null,null,null,""]
[null,189,null,null,null,null,null,null,null,null,null,null,null,"00011900//",null,null,null,null,null,null,null,null,""]
[null,190,null,null,null,null,null,null,null,null,null,null,null,"00011900//",null,null,null,null,null,null,null,null,""]
[null,191,null,null,null,null,null,null,null,null,null,null,null,"00011900//",null,null,null,null,null,null,null,null,""]
[null,192,null,null,null,null,null,null,null,null,null,null,null,"00011900//",null,null,null,null,null,null,null,null,""]
[null,193,null,null,null,null,null,null,null,null,null,null,null,{"$f":"IF(C200=\"VOID\",\"\",(TEXT(M200,\"DD\")&TEXT(M200,\"MM\")&TEXT(M200,\"YYYY\")&\"/\"&UPPER(LEFT(K200,1))&\"/\"&UPPER(LEFT(L200,4))))","v":"00011900//"},null,null,null,null,null,null,null,null,{"$f":"IF(T200=\"\",\"\",IF(C200=\"VOID\",\"\",(TEXT(V200,\"DD\")&TEXT(V200,\"MM\")&TEXT(V200,\"YYYY\")&\"/\"&UPPER(LEFT(T200,1))&\"/\"&UPPER(LEFT(U200,4)))))","v":""}]
[null,194,null,null,null,null,null,null,null,null,null,null,null,"00011900//",null,null,null,null,null,null,null,null,""]
[null,195,null,null,null,null,null,null,null,null,null,null,null,"00011900//",null,null,null,null,null,null,null,null,""]
[null,196,null,null,null,null,null,null,null,null,null,null,null,"00011900//",null,null,null,null,null,null,null,null,""]
[null,197,null,null,null,null,null,null,null,null,null,null,null,"00011900//",null,null,null,null,null,null,null,null,""]
[null,198,null,null,null,null,null,null,null,null,null,null,null,"00011900//",null,null,null,null,null,null,null,null,""]
[null,199,null,null,null,null,null,null,null,null,null,null,null,"00011900//",null,null,null,null,null,null,null,null,""]
[null,200,null,null,null,null,null,null,null,null,null,null,null,"00011900//",null,null,null,null,null,null,null,null,""]
[null,201,null,null,null,null,null,null,null,null,null,null,null,"00011900//",null,null,null,null,null,null,null,null,""]
[null,202,null,null,null,null,null,null,null,null,null,null,null,"00011900//",null,null,null,null,null,null,null,null,""]
[null,203,null,null,null,null,null,null,null,null,null,null,null,"00011900//",null,null,null,null,null,null,null,null,""]
[null,204,null,null,null,null,null,null,null,null,null,null,null,"00011900//",null,null,null,null,null,null,null,null,""]
[null,205,null,null,null,null,null,null,null,null,null,null,null,"00011900//",null,null,null,null,null,null,null,null,""]
[null,206,null,null,null,null,null,null,null,null,null,null,null,"00011900//",null,null,null,null,null,null,null,null,""]
[null,207,null,null,null,null,null,null,null,null,null,null,null,"00011900//",null,null,null,null,null,null,null,null,""]
[null,208,null,null,null,null,null,null,null,null,null,null,null,"00011900//",null,null,null,null,null,null,null,null,""]
[null,209,null,null,null,null,null,null,null,null,null,null,null,"00011900//",null,null,null,null,null,null,null,null,""]
[null,210,null,null,null,null,null,null,null,null,null,null,null,"00011900//",null,null,null,null,null,null,null,null,""]
[null,211,null,null,null,null,null,null,null,null,null,null,null,"00011900//",null,null,null,null,null,null,null,null,""]
[null,212,null,null,null,null,null,null,null,null,null,null,null,"00011900//",null,null,null,null,null,null,null,null,""]
[null,213,null,null,null,null,null,null,null,null,null,null,null,"00011900//",null,null,null,null,null,null,null,null,""]
[null,214,null,null,null,null,null,null,null,null,null,null,null,"00011900//",null,null,null,null,null,null,null,null,""]
[null,215,null,null,null,null,null,null,null,null,null,null,null,"00011900//",null,null,null,null,null,null,null,null,""]
[null,216,null,null,null,null,null,null,null,null,null,null,null,"00011900//",null,null,null,null,null,null,null,null,""]
[null,217,null,null,null,null,null,null,null,null,null,null,null,"00011900//",null,null,null,null,null,null,null,null,""]
[null,218,null,null,null,null,null,null,null,null,null,null,null,"00011900//",null,null,null,null,null,null,null,null,""]
[null,219,null,null,null,null,null,null,null,null,null,null,null,"00011900//",null,null,null,null,null,null,null,null,""]
[null,220,null,null,null,null,null,null,null,null,null,null,null,"00011900//",null,null,null,null,null,null,null,null,""]
[null,221,null,null,null,null,null,null,null,null,null,null,null,"00011900//",null,null,null,null,null,null,null,null,""]
[null,222,null,null,null,null,null,null,null,null,null,null,null,"00011900//",null,null,null,null,null,null,null,null,""]
[null,223,null,null,null,null,null,null,null,null,null,null,null,"00011900//",null,null,null,null,null,null,null,null,""]
[null,224,null,null,null,null,null,null,null,null,null,null,null,"00011900//",null,null,null,null,null,null,null,null,""]
[null,225,null,null,null,null,null,null,null,null,null,null,null,"00011900//",null,null,null,null,null,null,null,null,""]
[null,226,null,null,null,null,null,null,null,null,null,null,null,"00011900//",null,null,null,null,null,null,null,null,""]
[null,227,null,null,null,null,null,null,null,null,null,null,null,"00011900//",null,null,null,null,null,null,null,null,""]
[null,228,null,null,null,null,null,null,null,null,null,null,null,"00011900//",null,null,null,null,null,null,null,null,""]
[null,229,null,null,null,null,null,null,null,null,null,null,null,"00011900//",null,null,null,null,null,null,null,null,""]
[null,230,null,null,null,null,null,null,null,null,null,null,null,"00011900//",null,null,null,null,null,null,null,null,""]
[null,231,null,null,null,null,null,null,null,null,null,null,null,"00011900//",null,null,null,null,null,null,null,null,""]
[null,232,null,null,null,null,null,null,null,null,null,null,null,"00011900//",null,null,null,null,null,null,null,null,""]
[null,233,null,null,null,null,null,null,null,null,null,null,null,"00011900//",null,null,null,null,null,null,null,null,""]
[null,234,null,null,null,null,null,null,null,null,null,null,null,"00011900//",null,null,null,null,null,null,null,null,""]
[null,235,null,null,null,null,null,null,null,null,null,null,null,"00011900//",null,null,null,null,null,null,null,null,""]
[null,236,null,null,null,null,null,null,null,null,null,null,null,"00011900//",null,null,null,null,null,null,null,null,""]
[null,237,null,null,null,null,null,null,null,null,null,null,null,"00011900//",null,null,null,null,null,null,null,null,""]
[null,238,null,null,null,null,null,null,null,null,null,null,null,"00011900//",null,null,null,null,null,null,null,null,""]
[null,239,null,null,null,null,null,null,null,null,null,null,null,"00011900//",null,null,null,null,null,null,null,null,""]
[null,240,null,null,null,null,null,null,null,null,null,null,null,"00011900//",null,null,null,null,null,null,null,null,""]
[null,241,null,null,null,null,null,null,null,null,null,null,null,"00011900//",null,null,null,null,null,null,null,null,""]
[null,242,null,null,null,null,null,null,null,null,null,null,null,"00011900//",null,null,null,null,null,null,null,null,""]
[null,243,null,null,null,null,null,null,null,null,null,null,null,"00011900//",null,null,null,null,null,null,null,null,""]
[null,244,null,null,null,null,null,null,null,null,null,null,null,"00011900//",null,null,null,null,null,null,null,null,""]
[null,245,null,null,null,null,null,null,null,null,null,null,null,"00011900//",null,null,null,null,null,null,null,null,""]
[null,246,null,null,null,null,null,null,null,null,null,null,null,"00011900//",null,null,null,null,null,null,null,null,""]
[null,247,null,null,null,null,null,null,null,null,null,null,null,"00011900//",null,null,null,null,null,null,null,null,""]
[null,248,null,null,null,null,null,null,null,null,null,null,null,"00011900//",null,null,null,null,null,null,null,null,""]
[null,249,null,null,null,null,null,null,null,null,null,null,null,"00011900//",null,null,null,null,null,null,null,null,""]
[null,250,null,null,null,null,null,null,null,null,null,null,null,"00011900//",null,null,null,null,null,null,null,null,""]
[null,251,null,null,null,null,null,null,null,null,null,null,null,"00011900//",null,null,null,null,null,null,null,null,""]
[null,252,null,null,null,null,null,null,null,null,null,null,null,"00011900//",null,null,null,null,null,null,null,null,""]
[null,253,null,null,null,null,null,null,null,null,null,null,null,"00011900//",null,null,null,null,null,null,null,null,""]
[null,254,null,null,null,null,null,null,null,null,null,null,null,"00011900//",null,null,null,null,null,null,null,null,""]
[null,255,null,null,null,null,null,null,null,null,null,null,null,"00011900//",null,null,null,null,null,null,null,null,""]
[null,256,null,null,null,null,null,null,null,null,null,null,null,"00011900//",null,null,null,null,null,null,null,null,""]
[null,257,null,null,null,null,null,null,null,null,null,null,null,{"$f":"IF(C264=\"VOID\",\"\",(TEXT(M264,\"DD\")&TEXT(M264,\"MM\")&TEXT(M264,\"YYYY\")&\"/\"&UPPER(LEFT(K264,1))&\"/\"&UPPER(LEFT(L264,4))))","v":"00011900//"},null,null,null,null,null,null,null,null,{"$f":"IF(T264=\"\",\"\",IF(C264=\"VOID\",\"\",(TEXT(V264,\"DD\")&TEXT(V264,\"MM\")&TEXT(V264,\"YYYY\")&\"/\"&UPPER(LEFT(T264,1))&\"/\"&UPPER(LEFT(U264,4)))))","v":""}]
[null,258,null,null,null,null,null,null,null,null,null,null,null,"00011900//",null,null,null,null,null,null,null,null,""]
[null,259,null,null,null,null,null,null,null,null,null,null,null,"00011900//",null,null,null,null,null,null,null,null,""]
[null,260,null,null,null,null,null,null,null,null,null,null,null,"00011900//",null,null,null,null,null,null,null,null,""]
[null,261,null,null,null,null,null,null,null,null,null,null,null,"00011900//",null,null,null,null,null,null,null,null,""]
[null,262,null,null,null,null,null,null,null,null,null,null,null,"00011900//",null,null,null,null,null,null,null,null,""]
[null,263,null,null,null,null,null,null,null,null,null,null,null,"00011900//",null,null,null,null,null,null,null,null,""]
[null,264,null,null,null,null,null,null,null,null,null,null,null,"00011900//",null,null,null,null,null,null,null,null,""]
[null,265,null,null,null,null,null,null,null,null,null,null,null,"00011900//",null,null,null,null,null,null,null,null,""]
[null,266,null,null,null,null,null,null,null,null,null,null,null,"00011900//",null,null,null,null,null,null,null,null,""]
[null,267,null,null,null,null,null,null,null,null,null,null,null,"00011900//",null,null,null,null,null,null,null,null,""]
[null,268,null,null,null,null,null,null,null,null,null,null,null,"00011900//",null,null,null,null,null,null,null,null,""]
[null,269,null,null,null,null,null,null,null,null,null,null,null,"00011900//",null,null,null,null,null,null,null,null,""]
[null,270,null,null,null,null,null,null,null,null,null,null,null,"00011900//",null,null,null,null,null,null,null,null,""]
[null,271,null,null,null,null,null,null,null,null,null,null,null,"00011900//",null,null,null,null,null,null,null,null,""]
[null,272,null,null,null,null,null,null,null,null,null,null,null,"00011900//",null,null,null,null,null,null,null,null,""]
[null,273,null,null,null,null,null,null,null,null,null,null,null,"00011900//",null,null,null,null,null,null,null,null,""]
[null,274,null,null,null,null,null,null,null,null,null,null,null,"00011900//",null,null,null,null,null,null,null,null,""]
[null,275,null,null,null,null,null,null,null,null,null,null,null,"00011900//",null,null,null,null,null,null,null,null,""]
[null,276,null,null,null,null,null,null,null,null,null,null,null,"00011900//",null,null,null,null,null,null,null,null,""]
[null,277,null,null,null,null,null,null,null,null,null,null,null,"00011900//",null,null,null,null,null,null,null,null,""]
[null,278,null,null,null,null,null,null,null,null,null,null,null,"00011900//",null,null,null,null,null,null,null,null,""]
[null,279,null,null,null,null,null,null,null,null,null,null,null,"00011900//",null,null,null,null,null,null,null,null,""]
[null,280,null,null,null,null,null,null,null,null,null,null,null,"00011900//",null,null,null,null,null,null,null,null,""]
[null,281,null,null,null,null,null,null,null,null,null,null,null,"00011900//",null,null,null,null,null,null,null,null,""]
[null,282,null,null,null,null,null,null,null,null,null,null,null,"00011900//",null,null,null,null,null,null,null,null,""]
[null,283,null,null,null,null,null,null,null,null,null,null,null,"00011900//",null,null,null,null,null,null,null,null,""]
[null,284,null,null,null,null,null,null,null,null,null,null,null,"00011900//",null,null,null,null,null,null,null,null,""]
[null,285,null,null,null,null,null,null,null,null,null,null,null,"00011900//",null,null,null,null,null,null,null,null,""]
[null,286,null,null,null,null,null,null,null,null,null,null,null,"00011900//",null,null,null,null,null,null,null,null,""]
[null,287,null,null,null,null,null,null,null,null,null,null,null,"00011900//",null,null,null,null,null,null,null,null,""]
[null,288,null,null,null,null,null,null,null,null,null,null,null,"00011900//",null,null,null,null,null,null,null,null,""]
[null,289,null,null,null,null,null,null,null,null,null,null,null,"00011900//",null,null,null,null,null,null,null,null,""]
[null,290,null,null,null,null,null,null,null,null,null,null,null,"00011900//",null,null,null,null,null,null,null,null,""]
[null,291,null,null,null,null,null,null,null,null,null,null,null,"00011900//",null,null,null,null,null,null,null,null,""]
[null,292,null,null,null,null,null,null,null,null,null,null,null,"00011900//",null,null,null,null,null,null,null,null,""]
[null,293,null,null,null,null,null,null,null,null,null,null,null,"00011900//",null,null,null,null,null,null,null,null,""]
[null,294,null,null,null,null,null,null,null,null,null,null,null,"00011900//",null,null,null,null,null,null,null,null,""]
[null,295,null,null,null,null,null,null,null,null,null,null,null,"00011900//",null,null,null,null,null,null,null,null,""]
[null,296,null,null,null,null,null,null,null,null,null,null,null,"00011900//",null,null,null,null,null,null,null,null,""]
[null,297,null,null,null,null,null,null,null,null,null,null,null,"00011900//",null,null,null,null,null,null,null,null,""]
[null,298,null,null,null,null,null,null,null,null,null,null,null,"00011900//",null,null,null,null,null,null,null,null,""]
[null,299,null,null,null,null,null,null,null,null,null,null,null,"00011900//",null,null,null,null,null,null,null,null,""]
[null,300,null,null,null,null,null,null,null,null,null,null,null,"00011900//",null,null,null,null,null,null,null,null,""]
[null,301,null,null,null,null,null,null,null,null,null,null,null,"00011900//",null,null,null,null,null,null,null,null,""]
[null,302,null,null,null,null,null,null,null,null,null,null,null,"00011900//",null,null,null,null,null,null,null,null,""]
[null,303,null,null,null,null,null,null,null,null,null,null,null,"00011900//",null,null,null,null,null,null,null,null,""]
[null,304,null,null,null,null,null,null,null,null,null,null,null,"00011900//",null,null,null,null,null,null,null,null,""]
[null,305,null,null,null,null,null,null,null,null,null,null,null,"00011900//",null,null,null,null,null,null,null,null,""]
[null,306,null,null,null,null,null,null,null,null,null,null,null,"00011900//",null,null,null,null,null,null,null,null,""]
[null,307,null,null,null,null,null,null,null,null,null,null,null,"00011900//",null,null,null,null,null,null,null,null,""]
[null,308,null,null,null,null,null,null,null,null,null,null,null,"00011900//",null,null,null,null,null,null,null,null,""]
[null,309,null,null,null,null,null,null,null,null,null,null,null,"00011900//",null,null,null,null,null,null,null,null,""]
[null,310,null,null,null,null,null,null,null,null,null,null,null,"00011900//",null,null,null,null,null,null,null,null,""]
[null,311,null,null,null,null,null,null,null,null,null,null,null,"00011900//",null,null,null,null,null,null,null,null,""]
[null,312,null,null,null,null,null,null,null,null,null,null,null,"00011900//",null,null,null,null,null,null,null,null,""]
[null,313,null,null,null,null,null,null,null,null,null,null,null,"00011900//",null,null,null,null,null,null,null,null,""]
[null,314,null,null,null,null,null,null,null,null,null,null,null,"00011900//",null,null,null,null,null,null,null,null,""]
[null,315,null,null,null,null,null,null,null,null,null,null,null,"00011900//",null,null,null,null,null,null,null,null,""]
[null,316,null,null,null,null,null,null,null,null,null,null,null,"00011900//",null,null,null,null,null,null,null,null,""]
[null,317,null,null,null,null,null,null,null,null,null,null,null,"00011900//",null,null,null,null,null,null,null,null,""]
[null,318,null,null,null,null,null,null,null,null,null,null,null,"00011900//",null,null,null,null,null,null,null,null,""]
[null,319,null,null,null,null,null,null,null,null,null,null,null,"00011900//",null,null,null,null,null,null,null,null,""]
[null,320,null,null,null,null,null,null,null,null,null,null,null,"00011900//",null,null,null,null,null,null,null,null,""]
[null,321,null,null,null,null,null,null,null,null,null,null,null,{"$f":"IF(C328=\"VOID\",\"\",(TEXT(M328,\"DD\")&TEXT(M328,\"MM\")&TEXT(M328,\"YYYY\")&\"/\"&UPPER(LEFT(K328,1))&\"/\"&UPPER(LEFT(L328,4))))","v":"00011900//"},null,null,null,null,null,null,null,null,{"$f":"IF(T328=\"\",\"\",IF(C328=\"VOID\",\"\",(TEXT(V328,\"DD\")&TEXT(V328,\"MM\")&TEXT(V328,\"YYYY\")&\"/\"&UPPER(LEFT(T328,1))&\"/\"&UPPER(LEFT(U328,4)))))","v":""}]
[null,322,null,null,null,null,null,null,null,null,null,null,null,"00011900//",null,null,null,null,null,null,null,null,""]
[null,323,null,null,null,null,null,null,null,null,null,null,null,"00011900//",null,null,null,null,null,null,null,null,""]
[null,324,null,null,null,null,null,null,null,null,null,null,null,"00011900//",null,null,null,null,null,null,null,null,""]
[null,325,null,null,null,null,null,null,null,null,null,null,null,"00011900//",null,null,null,null,null,null,null,null,""]
[null,326,null,null,null,null,null,null,null,null,null,null,null,"00011900//",null,null,null,null,null,null,null,null,""]
[null,327,null,null,null,null,null,null,null,null,null,null,null,"00011900//",null,null,null,null,null,null,null,null,""]
[null,328,null,null,null,null,null,null,null,null,null,null,null,"00011900//",null,null,null,null,null,null,null,null,""]
[null,329,null,null,null,null,null,null,null,null,null,null,null,"00011900//",null,null,null,null,null,null,null,null,""]
[null,330,null,null,null,null,null,null,null,null,null,null,null,"00011900//",null,null,null,null,null,null,null,null,""]
[null,331,null,null,null,null,null,null,null,null,null,null,null,"00011900//",null,null,null,null,null,null,null,null,""]
[null,332,null,null,null,null,null,null,null,null,null,null,null,"00011900//",null,null,null,null,null,null,null,null,""]
[null,333,null,null,null,null,null,null,null,null,null,null,null,"00011900//",null,null,null,null,null,null,null,null,""]
[null,334,null,null,null,null,null,null,null,null,null,null,null,"00011900//",null,null,null,null,null,null,null,null,""]
[null,335,null,null,null,null,null,null,null,null,null,null,null,"00011900//",null,null,null,null,null,null,null,null,""]
[null,336,null,null,null,null,null,null,null,null,null,null,null,"00011900//",null,null,null,null,null,null,null,null,""]
[null,337,null,null,null,null,null,null,null,null,null,null,null,"00011900//",null,null,null,null,null,null,null,null,""]
[null,338,null,null,null,null,null,null,null,null,null,null,null,"00011900//",null,null,null,null,null,null,null,null,""]
[null,339,null,null,null,null,null,null,null,null,null,null,null,"00011900//",null,null,null,null,null,null,null,null,""]
[null,340,null,null,null,null,null,null,null,null,null,null,null,"00011900//",null,null,null,null,null,null,null,null,""]
[null,341,null,null,null,null,null,null,null,null,null,null,null,"00011900//",null,null,null,null,null,null,null,null,""]
[null,342,null,null,null,null,null,null,null,null,null,null,null,"00011900//",null,null,null,null,null,null,null,null,""]
[null,343,null,null,null,null,null,null,null,null,null,null,null,"00011900//",null,null,null,null,null,null,null,null,""]
[null,344,null,null,null,null,null,null,null,null,null,null,null,"00011900//",null,null,null,null,null,null,null,null,""]
[null,345,null,null,null,null,null,null,null,null,null,null,null,"00011900//",null,null,null,null,null,null,null,null,""]
[null,346,null,null,null,null,null,null,null,null,null,null,null,"00011900//",null,null,null,null,null,null,null,null,""]
[null,347,null,null,null,null,null,null,null,null,null,null,null,"00011900//",null,null,null,null,null,null,null,null,""]
[null,348,null,null,null,null,null,null,null,null,null,null,null,"00011900//",null,null,null,null,null,null,null,null,""]
[null,349,null,null,null,null,null,null,null,null,null,null,null,"00011900//",null,null,null,null,null,null,null,null,""]
[null,350,null,null,null,null,null,null,null,null,null,null,null,"00011900//",null,null,null,null,null,null,null,null,""]
[null,351,null,null,null,null,null,null,null,null,null,null,null,"00011900//",null,null,null,null,null,null,null,null,""]
[null,352,null,null,null,null,null,null,null,null,null,null,null,"00011900//",null,null,null,null,null,null,null,null,""]
[null,353,null,null,null,null,null,null,null,null,null,null,null,"00011900//",null,null,null,null,null,null,null,null,""]
[null,354,null,null,null,null,null,null,null,null,null,null,null,"00011900//",null,null,null,null,null,null,null,null,""]
[null,355,null,null,null,null,null,null,null,null,null,null,null,"00011900//",null,null,null,null,null,null,null,null,""]
[null,356,null,null,null,null,null,null,null,null,null,null,null,"00011900//",null,null,null,null,null,null,null,null,""]
[null,357,null,null,null,null,null,null,null,null,null,null,null,"00011900//",null,null,null,null,null,null,null,null,""]
[null,358,null,null,null,null,null,null,null,null,null,null,null,"00011900//",null,null,null,null,null,null,null,null,""]
[null,359,null,null,null,null,null,null,null,null,null,null,null,"00011900//",null,null,null,null,null,null,null,null,""]
[null,360,null,null,null,null,null,null,null,null,null,null,null,"00011900//",null,null,null,null,null,null,null,null,""]
[null,361,null,null,null,null,null,null,null,null,null,null,null,"00011900//",null,null,null,null,null,null,null,null,""]
[null,362,null,null,null,null,null,null,null,null,null,null,null,"00011900//",null,null,null,null,null,null,null,null,""]
[null,363,null,null,null,null,null,null,null,null,null,null,null,"00011900//",null,null,null,null,null,null,null,null,""]
[null,364,null,null,null,null,null,null,null,null,null,null,null,"00011900//",null,null,null,null,null,null,null,null,""]
[null,365,null,null,null,null,null,null,null,null,null,null,null,"00011900//",null,null,null,null,null,null,null,null,""]
[null,366,null,null,null,null,null,null,null,null,null,null,null,"00011900//",null,null,null,null,null,null,null,null,""]
[null,367,null,null,null,null,null,null,null,null,null,null,null,"00011900//",null,null,null,null,null,null,null,null,""]
[null,368,null,null,null,null,null,null,null,null,null,null,null,"00011900//",null,null,null,null,null,null,null,null,""]
[null,369,null,null,null,null,null,null,null,null,null,null,null,"00011900//",null,null,null,null,null,null,null,null,""]
[null,370,null,null,null,null,null,null,null,null,null,null,null,"00011900//",null,null,null,null,null,null,null,null,""]
[null,371,null,null,null,null,null,null,null,null,null,null,null,"00011900//",null,null,null,null,null,null,null,null,""]
[null,372,null,null,null,null,null,null,null,null,null,null,null,"00011900//",null,null,null,null,null,null,null,null,""]
[null,373,null,null,null,null,null,null,null,null,null,null,null,"00011900//",null,null,null,null,null,null,null,null,""]
[null,374,null,null,null,null,null,null,null,null,null,null,null,"00011900//",null,null,null,null,null,null,null,null,""]
[null,375,null,null,null,null,null,null,null,null,null,null,null,"00011900//",null,null,null,null,null,null,null,null,""]
[null,376,null,null,null,null,null,null,null,null,null,null,null,"00011900//",null,null,null,null,null,null,null,null,""]
[null,377,null,null,null,null,null,null,null,null,null,null,null,"00011900//",null,null,null,null,null,null,null,null,""]
[null,378,null,null,null,null,null,null,null,null,null,null,null,"00011900//",null,null,null,null,null,null,null,null,""]
[null,379,null,null,null,null,null,null,null,null,null,null,null,"00011900//",null,null,null,null,null,null,null,null,""]
[null,380,null,null,null,null,null,null,null,null,null,null,null,"00011900//",null,null,null,null,null,null,null,null,""]
[null,381,null,null,null,null,null,null,null,null,null,null,null,"00011900//",null,null,null,null,null,null,null,null,""]
[null,382,null,null,null,null,null,null,null,null,null,null,null,"00011900//",null,null,null,null,null,null,null,null,""]
[null,383,null,null,null,null,null,null,null,null,null,null,null,"00011900//",null,null,null,null,null,null,null,null,""]
[null,384,null,null,null,null,null,null,null,null,null,null,null,"00011900//",null,null,null,null,null,null,null,null,""]
[null,385,null,null,null,null,null,null,null,null,null,null,null,{"$f":"IF(C392=\"VOID\",\"\",(TEXT(M392,\"DD\")&TEXT(M392,\"MM\")&TEXT(M392,\"YYYY\")&\"/\"&UPPER(LEFT(K392,1))&\"/\"&UPPER(LEFT(L392,4))))","v":"00011900//"},null,null,null,null,null,null,null,null,{"$f":"IF(T392=\"\",\"\",IF(C392=\"VOID\",\"\",(TEXT(V392,\"DD\")&TEXT(V392,\"MM\")&TEXT(V392,\"YYYY\")&\"/\"&UPPER(LEFT(T392,1))&\"/\"&UPPER(LEFT(U392,4)))))","v":""}]
[null,386,null,null,null,null,null,null,null,null,null,null,null,"00011900//",null,null,null,null,null,null,null,null,""]
[null,387,null,null,null,null,null,null,null,null,null,null,null,"00011900//",null,null,null,null,null,null,null,null,""]
[null,388,null,null,null,null,null,null,null,null,null,null,null,"00011900//",null,null,null,null,null,null,null,null,""]
[null,389,null,null,null,null,null,null,null,null,null,null,null,"00011900//",null,null,null,null,null,null,null,null,""]
[null,390,null,null,null,null,null,null,null,null,null,null,null,"00011900//",null,null,null,null,null,null,null,null,""]
[null,391,null,null,null,null,null,null,null,null,null,null,null,"00011900//",null,null,null,null,null,null,null,null,""]
[null,392,null,null,null,null,null,null,null,null,null,null,null,"00011900//",null,null,null,null,null,null,null,null,""]
[null,393,null,null,null,null,null,null,null,null,null,null,null,"00011900//",null,null,null,null,null,null,null,null,""]
[null,394,null,null,null,null,null,null,null,null,null,null,null,"00011900//",null,null,null,null,null,null,null,null,""]
[null,395,null,null,null,null,null,null,null,null,null,null,null,"00011900//",null,null,null,null,null,null,null,null,""]
[null,396,null,null,null,null,null,null,null,null,null,null,null,"00011900//",null,null,null,null,null,null,null,null,""]
[null,397,null,null,null,null,null,null,null,null,null,null,null,"00011900//",null,null,null,null,null,null,null,null,""]
[null,398,null,null,null,null,null,null,null,null,null,null,null,"00011900//",null,null,null,null,null,null,null,null,""]
[null,399,null,null,null,null,null,null,null,null,null,null,null,"00011900//",null,null,null,null,null,null,null,null,""]
[null,400,null,null,null,null,null,null,null,null,null,null,null,"00011900//",null,null,null,null,null,null,null,null,""]
[null,401,null,null,null,null,null,null,null,null,null,null,null,"00011900//",null,null,null,null,null,null,null,null,""]
[null,402,null,null,null,null,null,null,null,null,null,null,null,"00011900//",null,null,null,null,null,null,null,null,""]
[null,403,null,null,null,null,null,null,null,null,null,null,null,"00011900//",null,null,null,null,null,null,null,null,""]
[null,404,null,null,null,null,null,null,null,null,null,null,null,"00011900//",null,null,null,null,null,null,null,null,""]
[null,405,null,null,null,null,null,null,null,null,null,null,null,"00011900//",null,null,null,null,null,null,null,null,""]
[null,406,null,null,null,null,null,null,null,null,null,null,null,"00011900//",null,null,null,null,null,null,null,null,""]
[null,407,null,null,null,null,null,null,null,null,null,null,null,"00011900//",null,null,null,null,null,null,null,null,""]
[null,408,null,null,null,null,null,null,null,null,null,null,null,"00011900//",null,null,null,null,null,null,null,null,""]
[null,409,null,null,null,null,null,null,null,null,null,null,null,"00011900//",null,null,null,null,null,null,null,null,""]
[null,410,null,null,null,null,null,null,null,null,null,null,null,"00011900//",null,null,null,null,null,null,null,null,""]
[null,411,null,null,null,null,null,null,null,null,null,null,null,"00011900//",null,null,null,null,null,null,null,null,""]
[null,412,null,null,null,null,null,null,null,null,null,null,null,"00011900//",null,null,null,null,null,null,null,null,""]
[null,413,null,null,null,null,null,null,null,null,null,null,null,"00011900//",null,null,null,null,null,null,null,null,""]
[null,414,null,null,null,null,null,null,null,null,null,null,null,"00011900//",null,null,null,null,null,null,null,null,""]
[null,415,null,null,null,null,null,null,null,null,null,null,null,"00011900//",null,null,null,null,null,null,null,null,""]
[null,416,null,null,null,null,null,null,null,null,null,null,null,"00011900//",null,null,null,null,null,null,null,null,""]
[null,417,null,null,null,null,null,null,null,null,null,null,null,"00011900//",null,null,null,null,null,null,null,null,""]
[null,418,null,null,null,null,null,null,null,null,null,null,null,"00011900//",null,null,null,null,null,null,null,null,""]
[null,419,null,null,null,null,null,null,null,null,null,null,null,"00011900//",null,null,null,null,null,null,null,null,""]
[null,420,null,null,null,null,null,null,null,null,null,null,null,"00011900//",null,null,null,null,null,null,null,null,""]
[null,421,null,null,null,null,null,null,null,null,null,null,null,"00011900//",null,null,null,null,null,null,null,null,""]
[null,422,null,null,null,null,null,null,null,null,null,null,null,"00011900//",null,null,null,null,null,null,null,null,""]
[null,423,null,null,null,null,null,null,null,null,null,null,null,"00011900//",null,null,null,null,null,null,null,null,""]
[null,424,null,null,null,null,null,null,null,null,null,null,null,"00011900//",null,null,null,null,null,null,null,null,""]
[null,425,null,null,null,null,null,null,null,null,null,null,null,"00011900//",null,null,null,null,null,null,null,null,""]
[null,426,null,null,null,null,null,null,null,null,null,null,null,"00011900//",null,null,null,null,null,null,null,null,""]
[null,427,null,null,null,null,null,null,null,null,null,null,null,"00011900//",null,null,null,null,null,null,null,null,""]
[null,428,null,null,null,null,null,null,null,null,null,null,null,"00011900//",null,null,null,null,null,null,null,null,""]
[null,429,null,null,null,null,null,null,null,null,null,null,null,"00011900//",null,null,null,null,null,null,null,null,""]
[null,430,null,null,null,null,null,null,null,null,null,null,null,"00011900//",null,null,null,null,null,null,null,null,""]
[null,431,null,null,null,null,null,null,null,null,null,null,null,"00011900//",null,null,null,null,null,null,null,null,""]
[null,432,null,null,null,null,null,null,null,null,null,null,null,"00011900//",null,null,null,null,null,null,null,null,""]
[null,433,null,null,null,null,null,null,null,null,null,null,null,"00011900//",null,null,null,null,null,null,null,null,""]
[null,434,null,null,null,null,null,null,null,null,null,null,null,"00011900//",null,null,null,null,null,null,null,null,""]
[null,435,null,null,null,null,null,null,null,null,null,null,null,"00011900//",null,null,null,null,null,null,null,null,""]
[null,436,null,null,null,null,null,null,null,null,null,null,null,"00011900//",null,null,null,null,null,null,null,null,""]
[null,437,null,null,null,null,null,null,null,null,null,null,null,"00011900//",null,null,null,null,null,null,null,null,""]
[null,438,null,null,null,null,null,null,null,null,null,null,null,"00011900//",null,null,null,null,null,null,null,null,""]
[null,439,null,null,null,null,null,null,null,null,null,null,null,"00011900//",null,null,null,null,null,null,null,null,""]
[null,440,null,null,null,null,null,null,null,null,null,null,null,"00011900//",null,null,null,null,null,null,null,null,""]
[null,441,null,null,null,null,null,null,null,null,null,null,null,"00011900//",null,null,null,null,null,null,null,null,""]
[null,442,null,null,null,null,null,null,null,null,null,null,null,"00011900//",null,null,null,null,null,null,null,null,""]
[null,443,null,null,null,null,null,null,null,null,null,null,null,"00011900//",null,null,null,null,null,null,null,null,""]
[null,444,null,null,null,null,null,null,null,null,null,null,null,"00011900//",null,null,null,null,null,null,null,null,""]
[null,445,null,null,null,null,null,null,null,null,null,null,null,"00011900//",null,null,null,null,null,null,null,null,""]
[null,446,null,null,null,null,null,null,null,null,null,null,null,"00011900//",null,null,null,null,null,null,null,null,""]
[null,447,null,null,null,null,null,null,null,null,null,null,null,"00011900//",null,null,null,null,null,null,null,null,""]
[null,448,null,null,null,null,null,null,null,null,null,null,null,"00011900//",null,null,null,null,null,null,null,null,""]
[null,449,null,null,null,null,null,null,null,null,null,null,null,{"$f":"IF(C456=\"VOID\",\"\",(TEXT(M456,\"DD\")&TEXT(M456,\"MM\")&TEXT(M456,\"YYYY\")&\"/\"&UPPER(LEFT(K456,1))&\"/\"&UPPER(LEFT(L456,4))))","v":"00011900//"},null,null,null,null,null,null,null,null,{"$f":"IF(T456=\"\",\"\",IF(C456=\"VOID\",\"\",(TEXT(V456,\"DD\")&TEXT(V456,\"MM\")&TEXT(V456,\"YYYY\")&\"/\"&UPPER(LEFT(T456,1))&\"/\"&UPPER(LEFT(U456,4)))))","v":""}]
[null,450,null,null,null,null,null,null,null,null,null,null,null,"00011900//",null,null,null,null,null,null,null,null,""]
[null,451,null,null,null,null,null,null,null,null,null,null,null,"00011900//",null,null,null,null,null,null,null,null,""]
[null,452,null,null,null,null,null,null,null,null,null,null,null,"00011900//",null,null,null,null,null,null,null,null,""]
[null,453,null,null,null,null,null,null,null,null,null,null,null,"00011900//",null,null,null,null,null,null,null,null,""]
[null,454,null,null,null,null,null,null,null,null,null,null,null,"00011900//",null,null,null,null,null,null,null,null,""]
[null,455,null,null,null,null,null,null,null,null,null,null,null,"00011900//",null,null,null,null,null,null,null,null,""]
[null,456,null,null,null,null,null,null,null,null,null,null,null,"00011900//",null,null,null,null,null,null,null,null,""]
[null,457,null,null,null,null,null,null,null,null,null,null,null,"00011900//",null,null,null,null,null,null,null,null,""]
[null,458,null,null,null,null,null,null,null,null,null,null,null,"00011900//",null,null,null,null,null,null,null,null,""]
[null,459,null,null,null,null,null,null,null,null,null,null,null,"00011900//",null,null,null,null,null,null,null,null,""]
[null,460,null,null,null,null,null,null,null,null,null,null,null,"00011900//",null,null,null,null,null,null,null,null,""]
[null,461,null,null,null,null,null,null,null,null,null,null,null,"00011900//",null,null,null,null,null,null,null,null,""]
[null,462,null,null,null,null,null,null,null,null,null,null,null,"00011900//",null,null,null,null,null,null,null,null,""]
[null,463,null,null,null,null,null,null,null,null,null,null,null,"00011900//",null,null,null,null,null,null,null,null,""]
[null,464,null,null,null,null,null,null,null,null,null,null,null,"00011900//",null,null,null,null,null,null,null,null,""]
[null,465,null,null,null,null,null,null,null,null,null,null,null,"00011900//",null,null,null,null,null,null,null,null,""]
[null,466,null,null,null,null,null,null,null,null,null,null,null,"00011900//",null,null,null,null,null,null,null,null,""]
[null,467,null,null,null,null,null,null,null,null,null,null,null,"00011900//",null,null,null,null,null,null,null,null,""]
[null,468,null,null,null,null,null,null,null,null,null,null,null,"00011900//",null,null,null,null,null,null,null,null,""]
[null,469,null,null,null,null,null,null,null,null,null,null,null,"00011900//",null,null,null,null,null,null,null,null,""]
[null,470,null,null,null,null,null,null,null,null,null,null,null,"00011900//",null,null,null,null,null,null,null,null,""]
[null,471,null,null,null,null,null,null,null,null,null,null,null,"00011900//",null,null,null,null,null,null,null,null,""]
[null,472,null,null,null,null,null,null,null,null,null,null,null,"00011900//",null,null,null,null,null,null,null,null,""]
[null,473,null,null,null,null,null,null,null,null,null,null,null,"00011900//",null,null,null,null,null,null,null,null,""]
[null,474,null,null,null,null,null,null,null,null,null,null,null,"00011900//",null,null,null,null,null,null,null,null,""]
[null,475,null,null,null,null,null,null,null,null,null,null,null,"00011900//",null,null,null,null,null,null,null,null,""]
[null,476,null,null,null,null,null,null,null,null,null,null,null,"00011900//",null,null,null,null,null,null,null,null,""]
[null,477,null,null,null,null,null,null,null,null,null,null,null,"00011900//",null,null,null,null,null,null,null,null,""]
[null,478,null,null,null,null,null,null,null,null,null,null,null,"00011900//",null,null,null,null,null,null,null,null,""]
[null,479,null,null,null,null,null,null,null,null,null,null,null,"00011900//",null,null,null,null,null,null,null,null,""]
[null,480,null,null,null,null,null,null,null,null,null,null,null,"00011900//",null,null,null,null,null,null,null,null,""]
[null,481,null,null,null,null,null,null,null,null,null,null,null,"00011900//",null,null,null,null,null,null,null,null,""]
[null,482,null,null,null,null,null,null,null,null,null,null,null,"00011900//",null,null,null,null,null,null,null,null,""]
[null,483,null,null,null,null,null,null,null,null,null,null,null,"00011900//",null,null,null,null,null,null,null,null,""]
[null,484,null,null,null,null,null,null,null,null,null,null,null,"00011900//",null,null,null,null,null,null,null,null,""]
[null,485,null,null,null,null,null,null,null,null,null,null,null,"00011900//",null,null,null,null,null,null,null,null,""]
[null,486,null,null,null,null,null,null,null,null,null,null,null,"00011900//",null,null,null,null,null,null,null,null,""]
[null,487,null,null,null,null,null,null,null,null,null,null,null,"00011900//",null,null,null,null,null,null,null,null,""]
[null,488,null,null,null,null,null,null,null,null,null,null,null,"00011900//",null,null,null,null,null,null,null,null,""]
[null,489,null,null,null,null,null,null,null,null,null,null,null,"00011900//",null,null,null,null,null,null,null,null,""]
[null,490,null,null,null,null,null,null,null,null,null,null,null,"00011900//",null,null,null,null,null,null,null,null,""]
[null,491,null,null,null,null,null,null,null,null,null,null,null,"00011900//",null,null,null,null,null,null,null,null,""]
[null,492,null,null,null,null,null,null,null,null,null,null,null,"00011900//",null,null,null,null,null,null,null,null,""]
[null,493,null,null,null,null,null,null,null,null,null,null,null,"00011900//",null,null,null,null,null,null,null,null,""]
[null,494,null,null,null,null,null,null,null,null,null,null,null,"00011900//",null,null,null,null,null,null,null,null,""]
[null,495,null,null,null,null,null,null,null,null,null,null,null,"00011900//",null,null,null,null,null,null,null,null,""]

{"sheet":"Help","index":5,"n_rows":84,"n_cols":13,"rows_kept":84,"cut":false,"hidden":false,"merged":[[46,1,46,15],[47,1,47,15],[49,1,49,15],[50,1,50,15],[51,1,51,15],[48,1,48,15],[42,1,42,15],[45,1,45,15],[43,1,43,15],[44,1,44,15],[39,1,39,15],[37,1,37,15],[38,1,38,15],[35,1,35,15],[36,1,36,15],[41,1,41,15],[13,1,13,15],[34,1,34,15],[23,1,23,15],[24,1,24,15],[25,1,25,15],[28,1,28,15],[29,1,29,15],[26,1,26,15],[27,1,27,15],[33,1,33,15],[30,1,30,15],[31,1,31,15],[76,2,76,5],[77,2,77,5],[71,2,71,5],[72,2,72,5],[73,2,73,5],[74,2,74,5],[83,2,83,5],[78,2,78,5],[79,2,79,5],[80,2,80,5],[81,2,81,5],[82,2,82,5],[69,2,69,5],[59,1,59,3],[54,1,56,3],[62,12,62,14],[62,1,62,5],[54,4,56,5],[67,2,67,5],[68,2,68,5],[66,2,66,5],[59,4,59,7],[59,9,59,14],[54,11,56,14],[54,7,56,10],[70,2,70,5],[75,2,75,5]]}
[]
[]
[]
[]
[]
[]
[]
[]
[]
[]
[]
[]
[]
[null,"Click the buttons below for additional guidance on completing the Crime, Mediation or Civil forms (Please note: you must be connected to the Internet)"]
[]
[]
[]
[]
[]
[]
[]
[]
[]
[null,"> Always have the CAPs lock on when entering data"]
[null,"> Ensure every row of data contains a Fee Scheme ID (Civil Sheet) or Stage Reached Code (Crime Sheet)\n    - This must be completed prior to entering any data in that line"]
[null,"> This spreadsheet is best used using a screen resolution of 1024 x 768\n    - This can be changed through the control panel on your PC"]
[null,"> Please check the comments within the title bar to ensure the correct data is being entered in the correct format\n    - Any header with a red marker has comments attached, to see these comments hover the mouse over the specific header"]
[null,"> For each submission line enter data in every field that is blank (i.e. not greyed out). Yellow fields are optional and should only be completed if applicable"]
[null,"    - Try using the tab button to shift from one field to the next (This will automatically skip over fields which are not required i.e. greyed out)"]
[null,"> It is essential that all the fields on the front page are completed (including schedule number / Account Number / Month & Year)\n    - Your schedule number can be found in the submissions list area of LAA Online or by contacting Online Support (see details below)"]
[null,"> Ensure you save the spreadsheet to your PC (after downloading from our website) prior to entering any data\n    - If you are using Excel 2007 ensure when using the 'save as' function in Excel you select to save the file as a 'macro enabled workbook' (.xlsm)"]
[null,"> Extra guidance on Case ID (civil) or 3 digit Supplier Code (Crime)\n    - Please number every case started on a particular date from 001 upwards (001, 002, 003 ...)\n    - For example if you opened 3 cases on the 12/04/08 the CASE IDs would be 001, 002 and 003\n    - On the following day restart the numbering from 001 (This ensures that the UFN is unique for every case started within each individual office)"]
[]
[null,"Running the Data Check:"]
[null,"> We strongly recommend that prior to submitting your claim you click the button to run the data check. This will highlight in orange:\n    - Any mandatory fields which are left blank and must be completed for your submission to be successful\n    - Any instances where the Case Start Date is after the Case Concluded Date\n    - Instances where a Prison Law stage-reached code (i.e PRIA) is selected but a non Prison Law Matter Type/Prison ID/Outcome Code is selected."]
[null,"> When the orange fields (i.e. blank cells or problem cells) are corrected the orange highlighting will disappear\n> Please run as many data checks as necessary until the message \"You have successfully completed all mandatory fields\" appears"]
[]
[null,"Customising the filepath (This section is an optional extra):"]
[null,"> The drive where the spreadsheet and bulkload files are saved can be amended if necessary to suit your specific computer system\n    - It is set as a default to your C: drive but if this needs to be amended please type a custom filepath into the green box at the very bottom of this page\n    - Please note: If a custom filepath is chosen - All folders within this filepath must already exist prior to saving the spreadsheet or creating the bulkload"]
[null,"> By changing this path you will be changing the blue text (see below) where the bulkload and spreadsheet files are saved"]
[]
[null,"Saving the Spreadsheet:"]
[null,"> When the 'Save Progress' button is pressed, the entire spreadsheet (Crime & Civil) will be saved in the following location:\n    - C:\\Bulkload\\Backup\\'MonthandYear'\\'AccNumber' + 'MonthandYear'.xls\n> The text in red above will be inserted from information entered on the front page (Therefore the front page must be completed prior to saving the spreadsheet)\n> The text in blue above will be inserted from information entered at the bottom of this page (please see help on customising the filepath)\n    - The folders and files in red (and black) above do not need to be created and will be automatically created for you"]
[null,"> We recommend clicking the save progress button every line or two to minimise the chance of data loss\n    - A message box will appear which confirms whether the spreadsheet has saved successfully (and where it is saved)\n    - We strongly recommend you use the grey save buttons built into the spreadsheet as this will ensure the file will be saved in the correct format"]
[]
[null,"Creating the Bulkload file (Civil or Crime):"]
[null,"> When the 'Create Bulkload' button is pressed this will create a CSV file which needs to be bulkloaded into LAA Online\n    - This file will be created in the following location > C:\\Bulkload\\Civil\\'MonthandYear'\\CivilBulkload + 'AccNumber' + 'MonthandYear'.csv\n> When the 'Create Crime Bulkload' button is pressed from the Crime page this will create the monthly crime lower submission to be bulkloaded into LAA Online\n    - and save it in the following location > C:\\Bulkload\\Crime\\'MonthandYear'\\CrimeBulkload + 'AccNumber' + 'MonthandYear'.csv"]
[null,"> The text in red above will be inserted from information entered on the front page (Therefore the front page must be completed prior to creating the bulkload)\n> The text in blue above will be inserted from information entered at the bottom of this page (please see help on customising the filepath)\n    - The folders and files in red (and black) above do not need to be created and will be automatically created for you"]
[]
[null,"Ethnicity Check Box:      \n> This section below allows the user to enter an ethnicity description from the drop down list in the green box - the code will then be displayed in the grey box\n    - This is the code which must be entered on the Civil and Crime pages in the column 'Ethnicity' (ensuring the preceding zero is included)"]
[]
[null,"For additional help and technical support:\n> Please contact the Legal Aid Agency Online Support Team on 0203 334 6664 or email online-support@legalaid.gsi.gov.uk"]
[]
[]
[null,"Ethnicity Check Box:",null,null,{"$f":"VLOOKUP(L55,C67:G84,5,0)","v":"00"},null,null,"Please select ethnicity description from drop down list >",null,null,null,"Other"]
[]
[]
[]
[]
[null,"Select Custom Filepath:",null,null,null,null,null,null,null,"Examples of acceptable filepaths (in the correct format):                                                                                                                                                                        > E:\\Admin\\LAA  or  J:  or  K:\\Documents\\OfficeAdmin\\John\\LAA"]
[]
[]
[null,{"$f":"(\"© Crown Copyright \" &'Front Page'!$E$18 & \" - Version \" &'Front Page'!$D$18)","v":"© Crown Copyright OCTOBER 2025 - Version v1.37"},null,null,null,null,null,null,null,null,null,null,{"$f":"TODAY()","v":"2025-10-03"}]
[]
[]
[]
[null,null,"Other",null,null,null,"00"]
[null,null,"White British",null,null,null,"01"]
[null,null,"White Irish",null,null,null,"02"]
[null,null,"Black or Black British African",null,null,null,"03"]
[null,null,"Black or Black British Caribbean",null,null,null,"04"]
[null,null,"Black or Black British Other",null,null,null,"05"]
[null,null,"Asian or Asian British Indian",null,null,null,"06"]
[null,null,"Asian or Asian British Pakistani",null,null,null,"07"]
[null,null,"Asian or Asian British Bangladeshi",null,null,null,"08"]
[null,null,"Chinese",null,null,null,"09"]
[null,null,"Mixed White & Black Caribbean",null,null,null,"10"]
[null,null,"Mixed White & Black African",null,null,null,"11"]
[null,null,"Mixed White & Asian",null,null,null,"12"]
[null,null,"Mixed Other",null,null,null,"13"]
[null,null,"White Other",null,null,null,"14"]
[null,null,"Asian or Asian British Other",null,null,null,"15"]
[null,null,"Gypsy/Traveller",null,null,null,"16"]
[null,null,"Unknown",null,null,null,"99"]

{"sheet":"PrintCivil","index":6,"n_rows":7,"n_cols":16,"rows_kept":7,"cut":false,"hidden":false,"merged":[[1,8,2,15],[4,5,4,8],[4,11,4,13]]}
[]
[null,null,null,null,null,null,null,null,{"$f":"(\"© Crown Copyright \" &'Front Page'!$E$18)","v":"© Crown Copyright OCTOBER 2025"}]
[]
[]
[null,{"$f":"TRIM(UPPER('Front Page'!C8))","v":""},null,{"$f":"TRIM(UPPER('Front Page'!C9&\" - \"&'Front Page'!C10))","v":"-"},null,"Summary of Civil Submission",null,null,null,null,null,{"$f":"(\"LAA Bulkload Spreadsheet \" &'Front Page'!$D$18)","v":"LAA Bulkload Spreadsheet v1.37"}]
[]
[null,"UFN","Schedule Reference","Case Reference","Client Surname","Matter Type 1","Matter Type 2","Case Stage Level","Net Profit Costs","Net Disbursements","Net Counsel","Disbursements VAT amount","VAT Indicator","Case Concluded Date","Stage Reached","Outcome for Client"]

{"sheet":"PrintCrime","index":7,"n_rows":7,"n_cols":14,"rows_kept":7,"cut":false,"hidden":false,"merged":[[1,7,2,13],[4,3,4,8],[4,9,4,11]]}
[]
[null,null,null,null,null,null,null,{"$f":"(\"© Crown Copyright \" &'Front Page'!$E$18)","v":"© Crown Copyright OCTOBER 2025"}]
[]
[]
[null,{"$f":"TRIM(UPPER('Front Page'!C8))","v":""},{"$f":"TRIM(UPPER('Front Page'!C9&\" - \"&'Front Page'!C10))","v":"-"},"Summary of Criminal Submission",null,null,null,null,null,{"$f":"(\"LAA Bulkload Spreadsheet \" &'Front Page'!$D$18)","v":"LAA Bulkload Spreadsheet v1.37"}]
[]
[null,"Stage Reached","Client Surname","Outcome for the Client","Matter Type","Net Profit Costs","Net Disbursements","Net Travel Costs","Net Waiting Costs","VAT Indicator","Disbursements VAT amount","Case Concluded Date","UFN","Police Station or Court Code"]

{"sheet":"PrintMediation","index":8,"n_rows":7,"n_cols":16,"rows_kept":7,"cut":false,"hidden":false,"merged":[[1,9,2,16],[4,11,4,13],[4,6,4,9]]}
[]
[null,null,null,null,null,null,null,null,null,{"$f":"(\"© Crown Copyright \" &'Front Page'!$E$18)","v":"© Crown Copyright OCTOBER 2025"}]
[]
[]
[null,null,{"$f":"TRIM(UPPER('Front Page'!C8))","v":""},null,{"$f":"TRIM(UPPER('Front Page'!C9&\" - \"&'Front Page'!C10))","v":"-"},null,"Summary of Mediation Submission",null,null,null,null,{"$f":"(\"LAA Bulkload Spreadsheet \" &'Front Page'!$D$18)","v":"LAA Bulkload Spreadsheet v1.37"}]
[]
[null,"Unique Case ID","Matter Type 1","Matter Type 2","Case Reference Number","Client 1 Surname","Legally Aided?","Client 2 Surname","Legally Aided?","Case Concluded Date","Number of Med Sessions","Mediation Time","Outcome","VAT Indicator","Disb exc. VAT","Disb VAT Amount"]

{"sheet":"CrimeOutcome","index":9,"n_rows":53,"n_cols":1,"rows_kept":53,"cut":false,"hidden":false,"merged":[]}
["CN01"]
["CN02"]
["CN03"]
["CN04"]
["CN05"]
["CN06"]
["CN07"]
["CN08"]
["CN09"]
["CN10"]
["CN11"]
["CN12"]
["CN13"]
["CP01"]
["CP02"]
["CP03"]
["CP04"]
["CP05"]
["CP06"]
["CP07"]
["CP08"]
["CP09"]
["CP10"]
["CP11"]
["CP12"]
["CP13"]
["CP16"]
["CP17"]
["CP18"]
["CP19"]
["CP20"]
["CP21"]
["CP22"]
["CP23"]
["CP24"]
["CP25"]
["CP26"]
["CP27"]
["CP28"]
["PL01"]
["PL02"]
["PL03"]
["PL04"]
["PL05"]
["PL06"]
["PL07"]
["PL08"]
["PL09"]
["PL10"]
["PL11"]
["PL12"]
["PL13"]
["PL14"]